Workbook

Sheet Factsheet
B3: Factsheet (nonfinancials) | AB3: Date: | AC3: =IF(AF3="",_xll.ECONOMATICA('Base Factsheet'!M7,"Date of Last Quote"),AF3) -> 2020-05-08 | AF3: 2020-05-08
B5: Avianca Holdings S.A. Pref | F5: =VLOOKUP(B5,'Base Factsheet'!I7:J3000,2,FALSE) -> PFAVH<XBOG> | H5: Colombia | AD5: =IFERROR(UPPER(_xll.ECONOMATICA($F$5,"name")&" "&_xll.ECONOMATICA($F$5,"class")&" | NAICS SECTOR: "&_xll.ECONOMATICA($F$5,"SECTOR NAICS")),"") -> AVIANCA HOLDINGS S.A. PREF | NAICS SECTOR: TRANSPORTE AÉREO REGULAR
B7: MARKET HIGHLIGHTS | I7: Thousands | L7: RETURNS TABLE
E8: =AC3 -> 2020-05-08 | G8: =IFERROR(DATE(YEAR($E$8)-1,12,31),"") -> 2019-12-31 | I8: =IFERROR(DATE(YEAR($E$8)-2,12,31),"") -> 2018-12-31 | O8: 1D | Q8: 1M | S8: 6M | U8: 12M | W8: 24M | Y8: 36M | AA8: 48M | AC8: 60M
B9: Close | E9: =IFERROR(_xll.ECONOMATICA($F$5,"close",,E$8,,,,,,,,{"tc.pers=3"}),"") -> 450 | G9: =IFERROR(_xll.ECONOMATICA($F$5,"close",,G$8,,,,,,,,{"tc.pers=3"}),"") -> 1835 | I9: =IFERROR(_xll.ECONOMATICA($F$5,"close",,I$8,,,,,,,,{"tc.pers=3"}),"") -> 1597.12391 | L9: Return | O9: =IFERROR(_xll.ECONOMATICA($F$5,"RETURN",O$8,$AC$3,,,,"decimal"),"") -> 0.02272727273 | Q9: =IFERROR(_xll.ECONOMATICA($F$5,"RETURN",Q$8,$AC$3,,,,"decimal"),"") -> -0.08163265306 | S9: =IFERROR(_xll.ECONOMATICA($F$5,"RETURN",S$8,$AC$3,,,,"decimal"),"") -> -0.7625329815 | U9: =IFERROR(_xll.ECONOMATICA($F$5,"RETURN",U$8,$AC$3,,,,"decimal"),"") -> -0.6839758478 | W9: =IFERROR(_xll.ECONOMATICA($F$5,"RETURN",W$8,$AC$3,,,,"decimal"),"") -> -0.8260318 | Y9: =IFERROR(_xll.ECONOMATICA($F$5,"RETURN",Y$8,$AC$3,,,,"decimal"),"") -> -0.8110218386 | AA9: =IFERROR(_xll.ECONOMATICA($F$5,"RETURN",AA$8,$AC$3,,,,"decimal"),"") -> -0.7523958369 | AC9: =IFERROR(_xll.ECONOMATICA($F$5,"RETURN",AC$8,$AC$3,,,,"decimal"),"") -> -0.8532885722
B10: High | E10: =IFERROR(_xll.ECONOMATICA($F$5,"High","in the year",E$8,,,),"") -> 2120 | G10: =IFERROR(_xll.ECONOMATICA($F$5,"High","in the year",G$8,,,),"") -> 1995 | I10: =IFERROR(_xll.ECONOMATICA($F$5,"High","in the year",I$8,,,),"") -> 3175.816634 | L10: =CONCATENATE("Benchmark (",'Base Factsheet'!N15,")") -> Benchmark (COLCAP RT) | O10: =IFERROR(_xll.ECONOMATICA("S&P 500","RETURN",O8,$AC$3,,,,"decimal"),"") -> 0.01687150101 | Q10: =IFERROR(_xll.ECONOMATICA("COLCAPRT<XBOG>","RETURN",Q8,$AC$3,,,,"decimal"),"") -> -0.04808227525 | S10: =IFERROR(_xll.ECONOMATICA("COLCAPRT<XBOG>","RETURN",S8,$AC$3,,,,"decimal"),"") -> -0.2982496221 | U10: =IFERROR(_xll.ECONOMATICA("COLCAPRT<XBOG>","RETURN",U8,$AC$3,,,,"decimal"),"") -> -0.24379506 | W10: =IFERROR(_xll.ECONOMATICA("COLCAPRT<XBOG>","RETURN",W8,$AC$3,,,,"decimal"),"") -> -0.221311301 | Y10: =IFERROR(_xll.ECONOMATICA("COLCAPRT<XBOG>","RETURN",Y8,$AC$3,,,,"decimal"),"") -> -0.1188215393 | AA10: =IFERROR(_xll.ECONOMATICA("COLCAPRT<XBOG>","RETURN",AA8,$AC$3,,,,"decimal"),"") -> -0.0202127907 | AC10: =IFERROR(_xll.ECONOMATICA("COLCAPRT<XBOG>","RETURN",AC8,$AC$3,,,,"decimal"),"") -> -0.03299144134
B11: Low | E11: =IFERROR(_xll.ECONOMATICA($F$5,"Low","in the year",E$8),"") -> 350 | G11: =IFERROR(_xll.ECONOMATICA($F$5,"Low","in the year",G$8),"") -> 1020.155378 | I11: =IFERROR(_xll.ECONOMATICA($F$5,"Low","in the year",I$8),"") -> 1539.39654 | L11: Difference Benchmark (bps) | O11: =IFERROR(O9-O10,"") -> 0.005855771717 | Q11: =IFERROR(Q9-Q10,"") -> -0.03355037781 | S11: =IFERROR(S9-S10,"") -> -0.4642833595 | U11: =IFERROR(U9-U10,"") -> -0.4401807877 | W11: =IFERROR(W9-W10,"") -> -0.6047204991 | Y11: =IFERROR(Y9-Y10,"") -> -0.6922002993 | AA11: =IFERROR(AA9-AA10,"") -> -0.7321830462 | AC11: =IFERROR(AC9-AC10,"") -> -0.8202971308
B12: Return | E12: =IFERROR(_xll.ECONOMATICA($F$5,"return","in the year",E$8,,,,"decimal"),"") -> -0.7547683924 | G12: =IFERROR(_xll.ECONOMATICA($F$5,"return","in the year",G$8,,,,"decimal"),"") -> 0.1489402846 | I12: =IFERROR(_xll.ECONOMATICA($F$5,"return","in the year",I$8,,,,"decimal"),"") -> -0.4118606036 | L12: Volatility | O12: =IFERROR(_xll.ECONOMATICA($F$5,"volatility",O8,$AC$3,,,,"decimal"),"") -> 0 | Q12: =IFERROR(_xll.ECONOMATICA($F$5,"volatility",Q8,$AC$3,,,,"decimal"),"") -> 1.055071964 | S12: =IFERROR(_xll.ECONOMATICA($F$5,"volatility",S8,$AC$3,,,,"decimal"),"") -> 1.481435172 | U12: =IFERROR(_xll.ECONOMATICA($F$5,"volatility",U8,$AC$3,,,,"decimal"),"") -> 1.159892952 | W12: =IFERROR(_xll.ECONOMATICA($F$5,"volatility",W8,$AC$3,,,,"decimal"),"") -> 0.8588044739 | Y12: =IFERROR(_xll.ECONOMATICA($F$5,"volatility",Y8,$AC$3,,,,"decimal"),"") -> 0.7179100718 | AA12: =IFERROR(_xll.ECONOMATICA($F$5,"volatility",AA8,$AC$3,,,,"decimal"),"") -> 0.6586367524 | AC12: =IFERROR(_xll.ECONOMATICA($F$5,"volatility",AC8,$AC$3,,,,"decimal"),"") -> 0.6189332362
B13: Avg Volume | E13: =IFERROR(_xll.ECONOMATICA($F$5,"Hist Average","in the year",E8,,,,$I$7,,,,{"std.tec.cals=7"}),"") -> 979155.9423 | G13: =IFERROR(_xll.ECONOMATICA($F$5,"Hist Average","in the year",G8,,,,$I$7,,,,{"std.tec.cals=7"}),"") -> 967080.7121 | I13: =IFERROR(_xll.ECONOMATICA($F$5,"Hist Average","in the year",I8,,,,$I$7,,,,{"std.tec.cals=7"}),"") -> 1151439.346 | L13: Sharpe | O13: =IFERROR(_xll.ECONOMATICA($F$5,"sharpe",O8,$AC$3,,,),"") ->  | Q13: =IFERROR(_xll.ECONOMATICA($F$5,"sharpe",Q8,$AC$3,,,),"") ->  | S13: =IFERROR(_xll.ECONOMATICA($F$5,"sharpe",S8,$AC$3,,,),"") -> -0.5851001939 | U13: =IFERROR(_xll.ECONOMATICA($F$5,"sharpe",U8,$AC$3,,,),"") -> -0.3056351894 | W13: =IFERROR(_xll.ECONOMATICA($F$5,"sharpe",W8,$AC$3,,,),"") -> -0.4946736239 | Y13: =IFERROR(_xll.ECONOMATICA($F$5,"sharpe",Y8,$AC$3,,,),"") -> -0.400465305 | AA13: =IFERROR(_xll.ECONOMATICA($F$5,"sharpe",AA8,$AC$3,,,),"") -> -0.2375828221 | AC13: =IFERROR(_xll.ECONOMATICA($F$5,"sharpe",AC8,$AC$3,,,),"") -> -0.3457529802
B15: Market Cap | E15: =IFERROR(_xll.ECONOMATICA($F$5,"MarketCapitaliz",,E$8,,,,$I$7),"") -> 448644279.6 | G15: =IFERROR(_xll.ECONOMATICA($F$5,"MarketCapitaliz",,G$8,,,,$I$7),"") -> 1829471673 | I15: =IFERROR(_xll.ECONOMATICA($F$5,"MarketCapitaliz",,I$8,,,,$I$7),"") -> 1654998898 | L15: GRAPH BASE 100 | AB15: Period: | AC15: 12M
B17: EV | E17: =IFERROR(_xll.ECONOMATICA($F$5,"EV",,E$8,,,,$I$7),"") -> 1.841640701e+10 | G17: =IFERROR(_xll.ECONOMATICA($F$5,"EV",,G$8,,,,$I$7),"") -> 1.97972344e+10 | I17: =IFERROR(_xll.ECONOMATICA($F$5,"EV",,I$8,,,,$I$7),"") -> 1.62191175e+10
B18: P/B | E18: =IFERROR(_xll.ECONOMATICA($F$5,"P/BV",,E$8,,,),"") -> 0.6169987942 | G18: =IFERROR(_xll.ECONOMATICA($F$5,"P/BV",,G$8,,,),"") -> 2.515983972 | I18: =IFERROR(_xll.ECONOMATICA($F$5,"P/BV",,I$8,,,),"") -> 0.4407020889
B19: Dividend Yield | E19: =IFERROR(_xll.ECONOMATICA($F$5,"Div Yld (start)","12M",E$8,,,,"decimal"),"") -> 0.03378378378 | G19: =IFERROR(_xll.ECONOMATICA($F$5,"Div Yld (start)","12M",G$8,,,,"decimal"),"") -> 0.03012048193 | I19: =IFERROR(_xll.ECONOMATICA($F$5,"Div Yld (start)","12M",I$8,,,,"decimal"),"") -> 0.03342372881
B20: Dividend p/share | E20: =IFERROR(_xll.ECONOMATICA($F$5,"Divid per Share","12M",E$8,,,),"") -> 50 | G20: =IFERROR(_xll.ECONOMATICA($F$5,"Divid per Share","12M",G$8,,,),"") -> 50 | I20: =IFERROR(_xll.ECONOMATICA($F$5,"Divid per Share","12M",I$8,,,),"") -> 98.6
B22: Beta | E22: =IFERROR(_xll.ECONOMATICA($F$5,"beta","in the year",E$8,,,,,,,,{"jtc.per=0"}),"") -> 0.1642120299 | G22: =IFERROR(_xll.ECONOMATICA($F$5,"beta","in the year",G$8,,,,,,,,{"jtc.per=0"}),"") -> 0.6694746033 | I22: =IFERROR(_xll.ECONOMATICA($F$5,"beta","in the year",I$8,,,,,,,,{"jtc.per=0"}),"") -> 0.3282892459
B23: Correlation | E23: =IFERROR(_xll.ECONOMATICA($F$5,"Correlation","in the year",E$8,,,,,,,,{"jtc.per=0"}),"") -> 0.1171146925 | G23: =IFERROR(_xll.ECONOMATICA($F$5,"Correlation","in the year",G$8,,,,,,,,{"jtc.per=0"}),"") -> 0.1403077505 | I23: =IFERROR(_xll.ECONOMATICA($F$5,"Correlation","in the year",I$8,,,,,,,,{"jtc.per=0"}),"") -> 0.1265458969
B25: Drawdown | E25: =IFERROR(_xll.ECONOMATICA($F$5,"MaxDrawdown","in the year",E$8,,,,"decimal"),"") -> -0.05494505495 | G25: =IFERROR(_xll.ECONOMATICA($F$5,"MaxDrawdown","in the year",G$8,,,,"decimal"),"") -> -0.4353364302 | I25: =IFERROR(_xll.ECONOMATICA($F$5,"MaxDrawdown","in the year",I$8,,,,"decimal"),"") -> -0.05518394649
B26: Max Loss | E26: =IFERROR(_xll.ECONOMATICA($F$5,"MaxLoss","in the year",E$8,,,,"decimal"),"") -> -0.8337292162 | G26: =IFERROR(_xll.ECONOMATICA($F$5,"MaxLoss","in the year",G$8,,,,"decimal"),"") -> -0.4353364302 | I26: =IFERROR(_xll.ECONOMATICA($F$5,"MaxLoss","in the year",I$8,,,,"decimal"),"") -> -0.4946174303
B28: FINANCIAL HIGHLIGHTS | I28: Millions
E29: =IFERROR(_xll.ECONOMATICA($F$5,"Fin Statm Date"),"") -> 2019-12-31 | G29: =IFERROR(DATE(YEAR($E$29)-1,12,31),"") -> 2018-12-31 | I29: =IFERROR(DATE(YEAR($E$29)-2,12,31),"") -> 2017-12-31
B30: Assets | E30: =IFERROR(_xll.ECONOMATICA($F$5,"Total Assets",,E$29,,,,$I$28),"") -> 25510402.5 | G30: =IFERROR(_xll.ECONOMATICA($F$5,"Total Assets",,G$29,,,,$I$28),"") -> 23085496.06 | I30: =IFERROR(_xll.ECONOMATICA($F$5,"Total Assets",,I$29,,,,$I$28),"") -> 20389530.2
B31: Stockholder's Equity | E31: =IFERROR(_xll.ECONOMATICA($F$5,"Stock Eq Par",,E$29,,,,$I$28),"") -> 727139.6376 | G31: =IFERROR(_xll.ECONOMATICA($F$5,"Stock Eq Par",,G$29,,,,$I$28),"") -> 3755368.853 | I31: =IFERROR(_xll.ECONOMATICA($F$5,"Stock Eq Par",,I$29,,,,$I$28),"") -> 4206788.009
B32: Working Capital | E32: =IFERROR(_xll.ECONOMATICA($F$5,"WorkCap",,E$29,,,,$I$28),"") -> -3580317.414 | G32: =IFERROR(_xll.ECONOMATICA($F$5,"WorkCap",,G$29,,,,$I$28),"") -> -3456369.105 | I32: =IFERROR(_xll.ECONOMATICA($F$5,"WorkCap",,I$29,,,,$I$28),"") -> -1901911.547
B33: Gross Debt | E33: =IFERROR(_xll.ECONOMATICA($F$5,"TtDebtGr",,E$29,,,,$I$28),"") -> 19877868.11 | G33: =IFERROR(_xll.ECONOMATICA($F$5,"TtDebtGr",,G$29,,,,$I$28),"") -> 16030084.07 | I33: =IFERROR(_xll.ECONOMATICA($F$5,"TtDebtGr",,I$29,,,,$I$28),"") -> 13171607.34
B34: Net Debt | E34: =IFERROR(_xll.ECONOMATICA($F$5,"TtNetDebt",,E$29,,,,$I$28),"") -> 18676781.13 | G34: =IFERROR(_xll.ECONOMATICA($F$5,"TtNetDebt",,G$29,,,,$I$28),"") -> 15142551.35 | I34: =IFERROR(_xll.ECONOMATICA($F$5,"TtNetDebt",,I$29,,,,$I$28),"") -> 11659101.16
B35: ST Debt | E35: =IFERROR(_xll.ECONOMATICA($F$5,"TotDebtsT",,E$29,,,,$I$28),"") ->  | G35: =IFERROR(_xll.ECONOMATICA($F$5,"TotDebtsT",,G$29,,,,$I$28),"") ->  | I35: =IFERROR(_xll.ECONOMATICA($F$5,"TotDebtsT",,I$29,,,,$I$28),"") -> 
B36: D/(D+E) | E36: =IFERROR(_xll.ECONOMATICA($F$5,"Cap Str(Mkt Cap)",,E$29,,,,"decimal"),"") -> 0.915721056 | G36: =IFERROR(_xll.ECONOMATICA($F$5,"Cap Str(Mkt Cap)",,G$29,,,,"decimal"),"") -> 0.9064183696 | I36: =IFERROR(_xll.ECONOMATICA($F$5,"Cap Str(Mkt Cap)",,I$29,,,,"decimal"),"") -> 0.817466416
L37: =IFERROR("SECTOR COMPARABLE (SECTOR NAICS): "&_xll.ECONOMATICA(Factsheet!F5,"SECTOR NAICS"),"") -> SECTOR COMPARABLE (SECTOR NAICS): Transporte aéreo regular
B38: Revenues | E38: =IFERROR(_xll.ECONOMATICA($F$5,"Revenues","12M",E$29,,,,$I$28),"") -> 16208094.84 | G38: =IFERROR(_xll.ECONOMATICA($F$5,"Revenues","12M",G$29,,,,$I$28),"") -> 15893974.79 | I38: =IFERROR(_xll.ECONOMATICA($F$5,"Revenues","12M",I$29,,,,$I$28),"") -> 13199041.42
B39: Gross Revenues | E39: =IFERROR(_xll.ECONOMATICA($F$5,"Gross Profit","12M",E$29,,,,$I$28),"") -> 7501185.731 | G39: =IFERROR(_xll.ECONOMATICA($F$5,"Gross Profit","12M",G$29,,,,$I$28),"") -> 6878082.876 | I39: =IFERROR(_xll.ECONOMATICA($F$5,"Gross Profit","12M",I$29,,,,$I$28),"") -> 5963383.878
B40: Gross Margin | E40: =IFERROR(_xll.ECONOMATICA($F$5,"GrossMargin","12M",E$29,,,,"decimal"),"") -> 0.4628049013 | G40: =IFERROR(_xll.ECONOMATICA($F$5,"GrossMargin","12M",G$29,,,,"decimal"),"") -> 0.4327478158 | I40: =IFERROR(_xll.ECONOMATICA($F$5,"GrossMargin","12M",I$29,,,,"decimal"),"") -> 0.4518043157 | S40: COMPANY | W40: SECTOR
B41: EBIT | E41: =IFERROR(_xll.ECONOMATICA($F$5,"EBIT","12M",E$29,,,,$I$28),"") -> -1943924.438 | G41: =IFERROR(_xll.ECONOMATICA($F$5,"EBIT","12M",G$29,,,,$I$28),"") -> 754318.971 | I41: =IFERROR(_xll.ECONOMATICA($F$5,"EBIT","12M",I$29,,,,$I$28),"") -> 872601.3197 | S41: Median | U41: AVG1 | W41: Avg | Y41: General AVG1
B42: EBIT Margin | E42: =IFERROR(_xll.ECONOMATICA($F$5,"EBITMargin","12M",E$29,,,,"decimal"),"") -> -0.1199354062 | G42: =IFERROR(_xll.ECONOMATICA($F$5,"EBITMargin","12M",G$29,,,,"decimal"),"") -> 0.04745942918 | I42: =IFERROR(_xll.ECONOMATICA($F$5,"EBITMargin","12M",I$29,,,,"decimal"),"") -> 0.06611096152 | P42: P/E * | S42: =IFERROR(INDEX(Multiples!L:L,MATCH('Base Factsheet'!$B$6,Multiples!$E:$E,0)),"") -> -0.117512711 | U42: =IFERROR(INDEX(Multiples!N:N,MATCH('Base Factsheet'!$B$6,Multiples!$E:$E,0)),"") -> 20.60348556 | W42: =AVERAGEIFS(Multiples!$L:$L,Multiples!$L:$L,">0",Multiples!$L:$L,"<50") -> 7.285769581 | Y42: =AVERAGE(Multiples!N:N) -> 11.72371052
B43: EBITDA | E43: =IFERROR(_xll.ECONOMATICA($F$5,"EBITDA","12M",E$29,,,,$I$28),"") -> 137180.6077 | G43: =IFERROR(_xll.ECONOMATICA($F$5,"EBITDA","12M",G$29,,,,$I$28),"") -> 2019732.624 | I43: =IFERROR(_xll.ECONOMATICA($F$5,"EBITDA","12M",I$29,,,,$I$28),"") -> 1803948.793
B44: EBITDA Margin | E44: =IFERROR(_xll.ECONOMATICA($F$5,"EbitdaMargin","12M",E$29,,,,"decimal"),"") -> 0.008463709587 | G44: =IFERROR(_xll.ECONOMATICA($F$5,"EbitdaMargin","12M",G$29,,,,"decimal"),"") -> 0.1270753635 | I44: =IFERROR(_xll.ECONOMATICA($F$5,"EbitdaMargin","12M",I$29,,,,"decimal"),"") -> 0.1366727124 | P44: EV / EBITDA* | S44: =IFERROR(INDEX(Multiples!$T:$T,MATCH('Base Factsheet'!$B$6,Multiples!$E:$E,0)),"") -> 133.7239364 | U44: =IFERROR(INDEX(Multiples!$V:$V,MATCH('Base Factsheet'!$B$6,Multiples!$E:$E,0)),"") -> 8.34674493 | W44: =AVERAGEIFS(Multiples!$T:$T,Multiples!$T:$T,">0",Multiples!$T:$T,"<50") -> 3.921914523 | Y44: =AVERAGE(Multiples!V:V) -> 6.891518017
B45: Net Income | E45: =IFERROR(_xll.ECONOMATICA($F$5,"Net Income","12M",E$29,,,,$I$28),"") -> -3204488.492 | G45: =IFERROR(_xll.ECONOMATICA($F$5,"Net Income","12M",G$29,,,,$I$28),"") -> -80603.54925 | I45: =IFERROR(_xll.ECONOMATICA($F$5,"Net Income","12M",I$29,,,,$I$28),"") -> 143342.5163
B46: Net Margin | E46: =IFERROR(_xll.ECONOMATICA($F$5,"Net Margin","12M",E$29,,,,"decimal"),"") -> -0.1934427726 | G46: =IFERROR(_xll.ECONOMATICA($F$5,"Net Margin","12M",G$29,,,,"decimal"),"") -> 0.000233702664 | I46: =IFERROR(_xll.ECONOMATICA($F$5,"Net Margin","12M",I$29,,,,"decimal"),"") -> 0.01846867089 | P46: Price / Book Value** | S46: =IFERROR(INDEX(Multiples!AJ:AJ,MATCH('Base Factsheet'!$B$6,Multiples!$E:$E,0)),"") -> 0.5178759493 | U46: =IFERROR(INDEX(Multiples!AM:AM,MATCH('Base Factsheet'!$B$6,Multiples!$E:$E,0)),"") -> 1.006995574 | W46: =AVERAGE(Multiples!AJ6:AJ1048576) -> 0.2086677999 | Y46: =AVERAGE(Multiples!AM:AM) -> 2.275705772
B47: EPS | E47: =IFERROR(_xll.ECONOMATICA($F$5,"EPS","12M",E$29,,,),"") -> -3214.171866 | G47: =IFERROR(_xll.ECONOMATICA($F$5,"EPS","12M",G$29,,,),"") -> -80.84711833 | I47: =IFERROR(_xll.ECONOMATICA($F$5,"EPS","12M",I$29,,,),"") -> 143.775671
P48: Price / Sales * | S48: =IFERROR(INDEX(Multiples!AS:AS,MATCH('Base Factsheet'!$B$6,Multiples!$E:$E,0)),"") -> 0.02323333704 | U48: =IFERROR(INDEX(Multiples!AU:AU,MATCH('Base Factsheet'!$B$6,Multiples!$E:$E,0)),"") -> 0.150327023 | W48: =AVERAGE(Multiples!AS6:AS1048576) -> 0.2971838051 | Y48: =AVERAGE(Multiples!AU:AU) -> 0.7387140996
B49: ROE | E49: =IFERROR(_xll.ECONOMATICA($F$5,"ROE (avg)","12M",E$29,,,,"decimal"),"") -> -1.962618177 | G49: =IFERROR(_xll.ECONOMATICA($F$5,"ROE (avg)","12M",G$29,,,,"decimal"),"") -> 0.001037845571 | I49: =IFERROR(_xll.ECONOMATICA($F$5,"ROE (avg)","12M",I$29,,,,"decimal"),"") -> 0.0591464709
B50: ROIC | E50: =IFERROR(_xll.ECONOMATICA($F$5,"ROIC (avg IC) %","12M",E$29,,,,"decimal"),"") -> -0.06709893905 | G50: =IFERROR(_xll.ECONOMATICA($F$5,"ROIC (avg IC) %","12M",G$29,,,,"decimal"),"") -> 0.02828283306 | I50: =IFERROR(_xll.ECONOMATICA($F$5,"ROIC (avg IC) %","12M",I$29,,,,"decimal"),"") -> 0.03620893207 | P50: Net debt / EBITDA* | S50: =IFERROR(INDEX(Multiples!BA:BA,MATCH('Base Factsheet'!$B$6,Multiples!$E:$E,0)),"") -> 136.1473859 | U50: =IFERROR(INDEX(Multiples!BC:BC,MATCH('Base Factsheet'!$B$6,Multiples!$E:$E,0)),"") -> 6.90224607 | W50: =AVERAGE(Multiples!BA6:BA1048576) -> 13.35549012 | Y50: =AVERAGE(Multiples!BC:BC) -> 2.555424089
B51: ROA | E51: =IFERROR(_xll.ECONOMATICA($F$5,"ROA","12M",E$29,,,,"decimal"),"") -> -0.1229043252 | G51: =IFERROR(_xll.ECONOMATICA($F$5,"ROA","12M",G$29,,,,"decimal"),"") -> 0.0001609003437 | I51: =IFERROR(_xll.ECONOMATICA($F$5,"ROA","12M",I$29,,,,"decimal"),"") -> 0.01195558455
P52: Dividend Yield | S52: =IFERROR(INDEX(Dividends!$N:$N,MATCH('Base Factsheet'!$B$6,Dividends!$E:$E,0)),"") -> 0.03296008251 | U52: =IFERROR(INDEX(Dividends!$P:$P,MATCH('Base Factsheet'!$B$6,Dividends!$E:$E,0)),"") -> 0.02125881659 | W52: =AVERAGE(Dividends!N7:N1048576) -> 0.009709229929 | Y52: =AVERAGE(Dividends!P:P) -> 0.01066812518
B53: Total Shares | E53: =IFERROR(_xll.ECONOMATICA($F$5,"Num of Shares",,E$29,,,,$I$28,,,,{"std.bac.totex=0"}),"") -> 996.987288 | G53: =IFERROR(_xll.ECONOMATICA($F$5,"Num of Shares",,G$29,,,,$I$28,,,,{"std.bac.totex=0"}),"") -> 996.987288 | I53: =IFERROR(_xll.ECONOMATICA($F$5,"Num of Shares",,I$29,,,,$I$28,,,,{"std.bac.totex=0"}),"") -> 996.987288
B54: Outstanding | E54: =IFERROR(_xll.ECONOMATICA($F$5,"Num of Shares",,E$29,,,,$I$28,,,,),"") -> 996.987288 | G54: =IFERROR(_xll.ECONOMATICA($F$5,"Num of Shares",,G$29,,,,$I$28,,,,),"") -> 996.987288 | I54: =IFERROR(_xll.ECONOMATICA($F$5,"Num of Shares",,I$29,,,,$I$28,,,,),"") -> 996.987288 | P54: D/(D+E) | S54: =IFERROR(INDEX(Multiples!AB:AB,MATCH('Base Factsheet'!$B$6,Multiples!$E:$E,0)),"") -> 0.9814081159 | U54: =IFERROR(INDEX(Multiples!AD:AD,MATCH('Base Factsheet'!$B$6,Multiples!$E:$E,0)),"") -> 0.877649425 | W54: =AVERAGE(Multiples!AB6:AB1048576) -> 0.6641956683 | Y54: =AVERAGE(Multiples!AD:AD) -> 0.4589773232
P57: 1 Average 5 years |* Average 4 years (values >0 and <50) |** Average 5 years (values >0 and <30)

Sheet Multiples
B2: Date: | C2: =Factsheet!AC3 -> 2020-05-08 | D2: ← Do not modify | H2: Price / Earnings | P2: EV / EBITDA | X2: D/(D+E) | AF2: PRICE / BOOK VALUE | AO2: PRICE /SALES | AW2: NET DEBT / EBITDA
H4: =EOMONTH(I4,-12) -> 2016-12-31 | I4: =EOMONTH(J4,-12) -> 2017-12-31 | J4: =EOMONTH(K4,-12) -> 2018-12-31 | K4: =DATE(YEAR($C$2)-1,12,31) -> 2019-12-31 | L4: =$C$2 -> 2020-05-08 | P4: =EOMONTH(Q4,-12) -> 2016-12-31 | Q4: =EOMONTH(R4,-12) -> 2017-12-31 | R4: =EOMONTH(S4,-12) -> 2018-12-31 | S4: =DATE(YEAR($C$2)-1,12,31) -> 2019-12-31 | T4: =$C$2 -> 2020-05-08 | X4: =EOMONTH(Y4,-12) -> 2016-12-31 | Y4: =EOMONTH(Z4,-12) -> 2017-12-31 | Z4: =EOMONTH(AA4,-12) -> 2018-12-31 | AA4: =DATE(YEAR($C$2)-1,12,31) -> 2019-12-31 | AB4: =TEXT($C$2,"AAAA") -> viernes | AF4: =EOMONTH(AG4,-12) -> 2016-12-31 | AG4: =EOMONTH(AH4,-12) -> 2017-12-31 | AH4: =EOMONTH(AI4,-12) -> 2018-12-31 | AI4: =DATE(YEAR($C$2)-1,12,31) -> 2019-12-31 | AJ4: =$C$2 -> 2020-05-08 | AO4: =EOMONTH(AP4,-12) -> 2016-12-31 | AP4: =EOMONTH(AQ4,-12) -> 2017-12-31 | AQ4: =EOMONTH(AR4,-12) -> 2018-12-31 | AR4: =DATE(YEAR($C$2)-1,12,31) -> 2019-12-31 | AS4: =$C$2 -> 2020-05-08 | AW4: =EOMONTH(AX4,-12) -> 2016-12-31 | AX4: =EOMONTH(AY4,-12) -> 2017-12-31 | AY4: =EOMONTH(AZ4,-12) -> 2018-12-31 | AZ4: =DATE(YEAR($C$2)-1,12,31) -> 2019-12-31 | BA4: LATEST
B5: =_xll.ECOSECURITIES("stock","active","true","USA;COL;CHL;MEX;PER;BRA;ARG","XNYS;XNAS;XBOG;XSGO;XBUE;XBSP;XLIM;XMEX",,,"SECTOR NAICS="&SUBSTITUTE(_xll.ECONOMATICA(Factsheet!F5,"SECTOR NAICS"),",","\,")) -> Codigo | C5: =_xll.ECONOMATICA($B$6:$B$200,"name") -> Nombre | D5: =_xll.ECONOMATICA($B$6:$B$200,"SECTOR NAICS",,,,,,,,,"SECTOR NAICS") -> SECTOR NAICS | E5: =_xll.ECONOMATICA($B$6:$B$200,"Ticker",,,,,,,,,"Ticker (cleaned)") -> Ticker (cleaned) | F5: =_xll.ECONOMATICA(B6:B200,"MarketCapitaliz",,$C$2,,,"USD","millions",,,"Mkt Cap (millions)") -> Mkt Cap (millions) | H5: =_xll.ECONOMATICA($B$6:$B$200,"P/E","12m",H4,,,"USD",,,,"P/E") -> P/E | I5: =_xll.ECONOMATICA($B$6:$B$200,"P/E","12m",I4,,,"USD",,,,"P/E") -> P/E | J5: =_xll.ECONOMATICA($B$6:$B$200,"P/E","12m",J4,,,"USD",,,,"P/E") -> P/E | K5: =_xll.ECONOMATICA($B$6:$B$200,"P/E","12m",K4,,,"USD",,,,"P/E") -> P/E | L5: =_xll.ECONOMATICA($B$6:$B$200,"P/E","12m",L4,,,"USD",,,,"P/E") -> P/E | M5: Median 5 years | N5: Average 5 years (values >0 e <50) | P5: =_xll.ECONOMATICA($B$6:$B$200,"EV/EBITDA co","12m",P4,,,"USD",,,,"EV/EBITDA") -> EV/EBITDA | Q5: =_xll.ECONOMATICA($B$6:$B$200,"EV/EBITDA co","12m",Q4,,,"USD",,,,"EV/EBITDA") -> EV/EBITDA | R5: =_xll.ECONOMATICA($B$6:$B$200,"EV/EBITDA co","12m",R4,,,"USD",,,,"EV/EBITDA") -> EV/EBITDA | S5: =_xll.ECONOMATICA($B$6:$B$200,"EV/EBITDA co","12m",S4,,,"USD",,,,"EV/EBITDA") -> EV/EBITDA | T5: =_xll.ECONOMATICA($B$6:$B$200,"EV/EBITDA co","12m",T4,,,"USD",,,,"EV/EBITDA") -> EV/EBITDA | U5: Median 5 years | V5: Average 5 years (values >0 e <50) | X5: =_xll.ECONOMATICA($B$6:$B$200,"Cap Str(Mkt Cap)",,X4,,,"USD","decimal",,,"D/D+E") -> D/D+E | Y5: =_xll.ECONOMATICA($B$6:$B$200,"Cap Str(Mkt Cap)",,Y4,,,"USD","decimal",,,"D/D+E") -> D/D+E | Z5: =_xll.ECONOMATICA($B$6:$B$200,"Cap Str(Mkt Cap)",,Z4,,,"USD","decimal",,,"D/D+E") -> D/D+E | AA5: =_xll.ECONOMATICA($B$6:$B$200,"Cap Str(Mkt Cap)",,AA4,,,"USD","decimal",,,"D/D+E") -> D/D+E | AB5: =_xll.ECONOMATICA($B$6:$B$200,"Cap Str(Mkt Cap)",,$C$2,,,"USD","decimal",,,"D/D+E") -> D/D+E | AC5: Median 5 years | AD5: Average 5 years | AF5: =_xll.ECONOMATICA($B$6:$B$200,"P/BV",,AF4,,,"USD",,,,"P/B") -> P/B | AG5: =_xll.ECONOMATICA($B$6:$B$200,"P/BV",,AG4,,,"USD",,,,"P/B") -> P/B | AH5: =_xll.ECONOMATICA($B$6:$B$200,"P/BV",,AH4,,,"USD",,,,"P/B") -> P/B | AI5: =_xll.ECONOMATICA($B$6:$B$200,"P/BV",,AI4,,,"USD",,,,"P/B") -> P/B | AJ5: =_xll.ECONOMATICA($B$6:$B$200,"P/BV",,AJ4,,,"USD",,,,"P/B") -> P/B | AK5: High 5 years | AL5: P/B atual vs High 5 years | AM5: Average 5 years (values >0 e <30) | AO5: =_xll.ECONOMATICA($B$6:$B$200,"PSR","12m",AO4,,,"USD",,,,"P/Sales") -> P/Sales | AP5: =_xll.ECONOMATICA($B$6:$B$200,"PSR","12m",AP4,,,"USD",,,,"P/Sales") -> P/Sales | AQ5: =_xll.ECONOMATICA($B$6:$B$200,"PSR","12m",AQ4,,,"USD",,,,"P/Sales") -> P/Sales | AR5: =_xll.ECONOMATICA($B$6:$B$200,"PSR","12m",AR4,,,"USD",,,,"P/Sales") -> P/Sales | AS5: =_xll.ECONOMATICA($B$6:$B$200,"PSR","12m",AS4,,,"USD",,,,"P/Sales") -> P/Sales | AT5: Median 5 years | AU5: Average 5 years (values >0 e <50) | AW5: =_xll.ECONOMATICA($B$6:$B$200,"NetDebt/Ebitda","12m",AW4,,,"USD",,,,"NetDebt/EBITDA") -> NetDebt/EBITDA | AX5: =_xll.ECONOMATICA($B$6:$B$200,"NetDebt/Ebitda","12m",AX4,,,"USD",,,,"NetDebt/EBITDA") -> NetDebt/EBITDA | AY5: =_xll.ECONOMATICA($B$6:$B$200,"NetDebt/Ebitda","12m",AY4,,,"USD",,,,"NetDebt/EBITDA") -> NetDebt/EBITDA | AZ5: =_xll.ECONOMATICA($B$6:$B$200,"NetDebt/Ebitda","12m",AZ4,,,"USD",,,,"NetDebt/EBITDA") -> NetDebt/EBITDA | BA5: =_xll.ECONOMATICA($B$6:$B$200,"NetDebt/Ebitda","12m",BA4,,,"USD",,,,"NetDebt/EBITDA") -> NetDebt/EBITDA | BB5: Median 5 years | BC5: Average 5 years (values >0 e <50)
B6: ALK<XNYS> | C6: Alaska Air Group, Inc | D6: Transporte aéreo regular | E6: ALK | F6: 3695.20278 | H6: 13.56727829 | I6: 8.803592814 | J6: 17.28693182 | K6: 10.9450727 | L6: 4.846526656 | M6: =IFERROR(MEDIAN(H6:L6),"-x-") -> 10.9450727 | N6: =IFERROR(AVERAGEIFS(H6:L6,H6:L6,">0",H6:L6,"<50"),"-x-") -> 11.08988045 | P6: 7.197354381 | Q6: 6.123180379 | R6: 8.040152364 | S6: 6.750336212 | T6: 3.621267012 | U6: =IFERROR(MEDIAN(P6:T6),"-x-") -> 6.750336212 | V6: =IFERROR(AVERAGEIFS(P6:T6,P6:T6,">0",P6:T6,"<50"),"-x-") -> 6.34645807 | X6: 0.2132087158 | Y6: 0.2211979749 | Z6: 0.2189302613 | AA6: 0.2776142753 | AB6: 0.4646342772 | AC6: =IFERROR(MEDIAN(X6:AB6),"-x-") -> 0.2211979749 | AD6: =IFERROR(AVERAGE(X6:AB6),"-x-") -> 0.2791171009 | AF6: 3.731788025 | AG6: 2.430806337 | AH6: 2.000212906 | AI6: 1.926806652 | AJ6: 0.8531985177 | AK6: =IF(MAX(AF6:AJ6)=0,"-x-",MAX(AF6:AJ6)) -> 3.731788025 | AL6: =IFERROR(AJ6/AK6,"-x-") -> 0.2286299522 | AM6: =IFERROR(AVERAGEIFS(AF6:AJ6,AF6:AJ6,">0",AF6:AJ6,"<30"),"-x-") -> 2.188562488 | AO6: 1.852299689 | AP6: 1.143632027 | AQ6: 0.9068267907 | AR6: 0.9510211977 | AS6: 0.4211163975 | AT6: =IFERROR(MEDIAN(AO6:AS6),"-x-") -> 0.9510211977 | AU6: =IFERROR(AVERAGEIFS(AO6:AS6,AO6:AS6,">0",AO6:AS6,"<50"),"-x-") -> 1.05497922 | AW6: 0.808411215 | AX6: 0.5808823529 | AY6: 0.8328530259 | AZ6: 1.134589502 | BA6: 1.134589502 | BB6: =IFERROR(MEDIAN(AW6:BA6),"-x-") -> 0.8328530259 | BC6: =IFERROR(AVERAGEIFS(AW6:BA6,AW6:BA6,">0",AW6:BA6,"<50"),"-x-") -> 0.8982651196
B7: ALGT<XNAS> | C7: Allegiant Travel Co | D7: Transporte aéreo regular | E7: ALGT | F7: 1234.491939 | H7: 12.59651779 | I7: 12.97150042 | J7: 10.022 | K7: 12.20476858 | L7: 5.288218794 | M7: 12.20476858 | N7: =IFERROR(AVERAGEIFS(H7:L7,H7:L7,">0",H7:L7,"<50"),"-x-") -> 10.61660112 | P7: 6.759851106 | Q7: 9.253162605 | R7: 6.693183551 | S7: 7.30831834 | T7: 4.229550751 | U7: 6.759851106 | V7: =IFERROR(AVERAGEIFS(P7:T7,P7:T7,">0",P7:T7,"<50"),"-x-") -> 6.848813271 | X7: 0.2269443191 | Y7: 0.3188908976 | Z7: 0.4398527657 | AA7: 0.3340274956 | AB7: 0.5352667038 | AC7: 0.3340274956 | AD7: 0.3709964364 | AF7: 5.813239311 | AG7: 4.540688092 | AH7: 2.346063294 | AI7: 3.208463903 | AJ7: 1.390199166 | AK7: 5.813239311 | AL7: 0.2391436327 | AM7: =IFERROR(AVERAGEIFS(AF7:AJ7,AF7:AJ7,">0",AF7:AJ7,"<30"),"-x-") -> 3.459730753 | AO7: 2.027071427 | AP7: 1.684063356 | AQ7: 0.9693730063 | AR7: 1.538676227 | AS7: 0.6666948647 | AT7: 1.538676227 | AU7: =IFERROR(AVERAGEIFS(AO7:AS7,AO7:AS7,">0",AO7:AS7,"<50"),"-x-") -> 1.377175776 | AW7: 0.993364917 | AX7: 2.14928092 | AY7: 2.349049113 | AZ7: 1.854623491 | BA7: 1.854623491 | BB7: 1.854623491 | BC7: =IFERROR(AVERAGEIFS(AW7:BA7,AW7:BA7,">0",AW7:BA7,"<50"),"-x-") -> 1.840188387
B8: AAL<XNAS> | C8: American Airlines Group Inc | D8: Transporte aéreo regular | E8: AAL | F8: 4320.235664 | H8: 9.706860707 | I8: 13.34102564 | J8: 10.59735974 | K8: 7.567282322 | L8: -5.451612903 | M8: 9.706860707 | N8: 10.3031321 | P8: 5.93864595 | Q8: 7.390173954 | R8: 7.165580639 | S8: 6.140163962 | U8: 6.652872301 | V8: 6.658641126 | X8: 0.5015734587 | Y8: 0.5016882388 | Z8: 0.6233210539 | AA8: 0.6593272037 | AB8: 0.8530643821 | AC8: 0.6233210539 | AD8: 0.6277948674 | AF8: 6.391351 | AG8: 6.341392452 | AH8: -87.51047797 | AI8: -106.4703611 | AJ8: -1.63893614 | AK8: 6.391351 | AL8: -0.2564303134 | AM8: 6.366371726 | AO8: 0.6553753199 | AP8: 0.6085566981 | AQ8: 0.3365754483 | AR8: 0.279739919 | AS8: 0.1022308949 | AT8: 0.3365754483 | AU8: 0.396495656 | AW8: 2.532385244 | AX8: 3.292016461 | AY8: 4.094080997 | AZ8: 3.806241873 | BB8: 3.549129167 | BC8: 3.431181143
B9: PFAVH<XBOG> | C9: Avianca Holdings S.A. | D9: Transporte aéreo regular | E9: PFAVH | F9: 114.3176728 | H9: 69.99834314 | I9: 20.60348556 | J9: -20.53258093 | K9: -0.57311 | L9: -0.117512711 | M9: -0.117512711 | N9: 20.60348556 | P9: 9.03475627 | Q9: 7.975149505 | R9: 8.030329016 | S9: 144.3665214 | T9: 133.7239364 | U9: 9.03475627 | V9: 8.34674493 | X9: 0.7681512547 | Y9: 0.8168457502 | Z9: 0.9064183696 | AA9: 0.9154236344 | AB9: 0.9814081159 | AC9: 0.9064183696 | AD9: 0.877649425 | AF9: 0.848671352 | AG9: 0.7020452321 | AH9: 0.4407020889 | AI9: 2.525683246 | AJ9: 0.5178759493 | AK9: 2.525683246 | AL9: 0.2050439025 | AM9: 1.006995574 | AO9: 0.287209954 | AP9: 0.2237552993 | AQ9: 0.1041274395 | AR9: 0.1133090853 | AS9: 0.02323333704 | AT9: 0.1133090853 | AU9: 0.150327023 | AW9: 6.746333444 | AX9: 6.463099841 | AY9: 7.497304925 | AZ9: 136.1473859 | BA9: 136.1473859 | BB9: 7.497304925 | BC9: 6.90224607
B10: AZUL4<XBSP> | C10: Azul S.A. | D10: Transporte aéreo regular | E10: AZUL4 | F10: 806.1582193 | I10: 15.93324261 | J10: 28.8405837 | K10: -8.250698496 | L10: -1.346073104 | M10: 7.293584753 | N10: 22.38691316 | Q10: 9.150095849 | R10: 16.70330978 | S10: 8.776149207 | T10: 2.04309498 | U10: 8.963122528 | V10: 9.168162454 | Y10: 0.2799651252 | Z10: 0.2332266234 | AA10: 0.1501233239 | AB10: 0.5198575958 | AC10: 0.2565958743 | AD10: 0.2957931671 | AG10: 3.167531081 | AH10: 3.851249003 | AI10: -5.659552482 | AJ10: -0.9233365371 | AK10: 3.851249003 | AL10: -0.2397498931 | AM10: 3.509390042 | AP10: 1.082137491 | AQ10: 1.324217333 | AR10: 1.732790487 | AS10: 0.2826988128 | AT10: 1.203177412 | AU10: 1.105461031 | AW10: 4.803683111 | AX10: 1.444532775 | AY10: 2.37486094 | AZ10: 0.7304700818 | BA10: 0.7304700818 | BB10: 1.444532775 | BC10: 2.016803398
B11: CVA<XSGO> | C11: Costa Verde Aeronautica S.A. | D11: Transporte aéreo regular | E11: CVA | M11: -x- | N11: -x- | U11: -x- | V11: -x- | AC11: -x- | AD11: -x- | AK11: -x- | AL11: -x- | AM11: -x- | AT11: -x- | AU11: -x- | AW11: 0.6700212826 | AX11: 1.370833095 | BB11: 1.020427189 | BC11: 1.020427189
B12: DAL<XNYS> | C12: Delta Air Lines, Inc | D12: Transporte aéreo regular | E12: DAL | F12: 14491.6386 | H12: 8.495682211 | I12: 11.31313131 | J12: 8.800705467 | K12: 8.010958904 | L12: 4.215213358 | M12: 8.495682211 | N12: 8.167138251 | P12: 4.552265748 | Q12: 5.651993746 | R12: 5.827126719 | S12: 5.178445712 | U12: 5.415219729 | V12: 5.302457981 | X12: 0.1683398059 | Y12: 0.1987055509 | Z12: 0.2564689173 | AA12: 0.2513335599 | AB12: 0.5655806349 | AC12: 0.2513335599 | AD12: 0.2880856938 | AF12: 2.948055745 | AG12: 2.870344772 | AH12: 2.499625424 | AI12: 2.462659337 | AJ12: 1.012763897 | AK12: 2.948055745 | AL12: 0.3435362098 | AM12: 2.358689835 | AO12: 0.9422466197 | AP12: 0.9859946869 | AQ12: 0.7826167665 | AR12: 0.8186895575 | AS12: 0.3265127293 | AT12: 0.8186895575 | AU12: 0.771212072 | AW12: 0.461147504 | AX12: 0.869804767 | AY12: 1.321348611 | AZ12: 1.0669638 | BB12: 0.9683842837 | BC12: 0.9298161705
B13: GOLL4<XBSP> | C13: Gol | D13: Transporte aéreo regular | E13: GOLL4 | F13: 678.2544173 | H13: 1.876547775 | I13: 262.6914445 | J13: -8.048761238 | K13: -109.9557251 | L13: -22.97847896 | M13: -8.048761238 | N13: 1.876547775 | P13: 6.356664051 | Q13: 7.097423384 | R13: 7.258978664 | S13: 9.126186265 | T13: 4.274197677 | U13: 7.097423384 | V13: 6.822690008 | X13: 0.8000455862 | Y13: 0.5832749124 | Z13: 0.4472650415 | AA13: 0.3913063419 | AB13: 0.7546735176 | AC13: 0.5832749124 | AD13: 0.5953130799 | AF13: -0.436808635 | AG13: -1.458418928 | AH13: -1.756135836 | AI13: -1.704106555 | AJ13: -0.3561231268 | AK13: -0.3561231268 | AL13: 1 | AM13: -x- | AO13: 0.1615786475 | AP13: 0.4764998287 | AQ13: 0.7655593811 | AR13: 0.9300478211 | AS13: 0.1943608146 | AT13: 0.4764998287 | AU13: 0.5056092986 | AW13: 4.706973265 | AX13: 3.426487781 | AY13: 2.794284493 | AZ13: 2.724503092 | BA13: 2.724503092 | BB13: 2.794284493 | BC13: 3.275350345
B14: HA<XNAS> | C14: Hawaiian Hldg Inc | D14: Transporte aéreo regular | E14: HA | F14: 593.2167851 | H14: 13.0733945 | I14: 5.843108504 | J14: 5.716450216 | K14: 6.218683652 | L14: 15.36904762 | M14: 6.218683652 | N14: 9.244136897 | P14: 5.862121133 | Q14: 3.651541914 | R14: 3.295766564 | S14: 4.304005947 | U14: 3.97777393 | V14: 4.278358889 | X14: 0.1545777505 | Y14: 0.2144033891 | Z14: 0.3523312837 | AA14: 0.4995382953 | AB14: 0.7233845151 | AC14: 0.3523312837 | AD14: 0.3888470468 | AF14: 4.475414283 | AG14: 2.16472488 | AH14: 1.376323404 | AI14: 1.261487357 | AJ14: 0.640690052 | AK14: 4.475414283 | AL14: 0.1431577082 | AM14: 1.983727995 | AO14: 1.243178237 | AP14: 0.7880541687 | AQ14: 0.472532637 | AR14: 0.4941901862 | AS14: 0.2224752233 | AT14: 0.4941901862 | AU14: 0.6440860904 | AW14: -0.1043467528 | AX14: 0.1831576747 | AY14: 0.4549706176 | AZ14: 1.51791489 | BB14: 0.3190641462 | BC14: 0.718681061
B15: JBLU<XNAS> | C15: Jetblue Airways Corp | D15: Transporte aéreo regular | E15: JBLU | F15: 2565.214807 | H15: 10.0990991 | I15: 6.438040346 | J15: 26.76666667 | K15: 9.80104712 | L15: 4.759162304 | M15: 9.80104712 | N15: 11.57280311 | P15: 4.499171287 | Q15: 5.303770967 | R15: 7.288660978 | S15: 5.455360408 | T15: 3.312614949 | U15: 5.303770967 | V15: 5.171915718 | X15: 0.1601465008 | Y15: 0.1433824145 | Z15: 0.2543844414 | AA15: 0.3683812682 | AB15: 0.5513173995 | AC15: 0.2543844414 | AD15: 0.2955224049 | AF15: 1.808643669 | AG15: 1.481847914 | AH15: 1.06156298 | AI15: 1.126141392 | AJ15: 0.5468282722 | AK15: 1.808643669 | AL15: 0.3023416284 | AM15: 1.205004846 | AO15: 1.089120855 | AP15: 1.047347896 | AQ15: 0.6580885105 | AR15: 0.6889067659 | AS15: 0.3345172277 | AT15: 0.6889067659 | AU15: 0.7635962509 | AW15: 0.242228739 | AX15: 0.3499308437 | AY15: 1.005134788 | AZ15: 1.376603774 | BA15: 1.376603774 | BB15: 1.005134788 | BC15: 0.8701003836
B16: LTM<XSGO> | C16: Latam Airlines Group S.A. | D16: Transporte aéreo regular | E16: LTM | F16: 1827.554867 | H16: 67.53450629 | I16: 55.33036031 | J16: 33.22225061 | K16: 32.26665028 | L16: 9.596990322 | M16: 33.22225061 | N16: 25.0286304 | P16: 8.386935306 | Q16: 8.714980343 | R16: 6.869242997 | S16: 6.741445724 | T16: 4.799572879 | U16: 6.869242997 | V16: 7.10243545 | X16: 0.6274237851 | Y16: 0.4791942188 | Z16: 0.5469044172 | AA16: 0.628966813 | AB16: 0.8507342643 | AC16: 0.6274237851 | AD16: 0.6266446997 | AF16: 1.251875091 | AG16: 2.057673167 | AH16: 1.648366648 | AI16: 1.962620908 | AJ16: 0.583737503 | AK16: 2.057673167 | AL16: 0.2836881543 | AM16: 1.500854663 | AO16: 0.5200891962 | AP16: 0.8938120868 | AQ16: 0.6108147179 | AR16: 0.610178726 | AS16: 0.1814839557 | AT16: 0.610178726 | AU16: 0.5632757365 | AW16: 4.797877998 | AX16: 3.63177211 | AY16: 3.350106449 | AZ16: 3.978220982 | BA16: 3.978220982 | BB16: 3.978220982 | BC16: 3.947239704
B17: MESA<XNAS> | C17: Mesa Air Group Inc | D17: Transporte aéreo regular | E17: MESA | F17: 132.4868953 | K17: 7.911504425 | L17: 3.548672566 | M17: 5.730088496 | N17: 5.730088496 | S17: 6.229896994 | T17: 5.368761639 | U17: 5.799329316 | V17: 5.799329316 | Z17: 0.8264631122 | AA17: 0.7610550912 | AB17: 0.8765564433 | AC17: 0.8264631122 | AD17: 0.8213582156 | AH17: 0.4663727313 | AI17: 0.6740663009 | AJ17: 0.3023496495 | AK17: 0.6740663009 | AL17: 0.4485458613 | AM17: 0.4809295606 | AR17: 0.3492188659 | AS17: 0.156640677 | AT17: 0.2529297715 | AU17: 0.2529297715 | AZ17: 4.668324971 | BA17: 4.668324971 | BB17: 4.668324971 | BC17: 4.668324971
B18: SKYW<XNAS> | C18: Skywest Inc | D18: Transporte aéreo regular | E18: SKYW | F18: 1486.467811 | H18: -11.60828025 | I18: 6.571782178 | J18: 8.390566038 | K18: 9.762839879 | L18: 4.448640483 | M18: 6.571782178 | N18: 7.293457145 | P18: 34.50890894 | Q18: 6.982081633 | R18: 5.907546096 | S18: 6.912792956 | T18: 4.899669919 | U18: 6.912792956 | V18: 11.84219991 | X18: 0.5744133624 | Y18: 0.493950749 | Z18: 0.5779284489 | AA18: 0.5066929085 | AB18: 0.6924735449 | AC18: 0.5744133624 | AD18: 0.5690918027 | AF18: 1.39605138 | AG18: 1.569174977 | AH18: 1.174875643 | AI18: 1.49825829 | AJ18: 0.6827124652 | AK18: 1.569174977 | AL18: 0.4350773338 | AM18: 1.264214551 | AO18: 0.5997366908 | AP18: 0.8584738586 | AQ18: 0.7170903955 | AR18: 1.112929955 | AS18: 0.5071296173 | AT18: 0.7170903955 | AU18: 0.7590721034 | AW18: 17.71249054 | AX18: 2.93953892 | AY18: 3.054443921 | AZ18: 3.211185021 | BA18: 3.211185021 | BB18: 3.211185021 | BC18: 6.025768684
B19: LUV<XNYS> | C19: Southwest Airlines Co. | D19: Transporte aéreo regular | E19: LUV | F19: 13841.68642 | H19: 14.03943662 | I19: 11.30397237 | J19: 10.61187215 | K19: 12.64168618 | L19: 8 | M19: 11.30397237 | N19: 11.31939346 | P19: 6.392570018 | Q19: 8.582764071 | R19: 6.245747764 | S19: 6.82384705 | T19: 4.15091902 | U19: 6.392570018 | V19: 6.439169585 | X19: 0.1270400698 | Y19: 0.1152289413 | Z19: 0.1626833571 | AA19: 0.1277312327 | AB19: 0.3211094558 | AC19: 0.1277312327 | AD19: 0.1707586114 | AF19: 3.634805267 | AG19: 3.723607128 | AH19: 2.652594174 | AI19: 2.889380114 | AJ19: 1.550461563 | AK19: 3.723607128 | AL19: 0.4163869898 | AM19: 2.890169649 | AO19: 1.53854997 | AP19: 1.869249336 | AQ19: 1.223243266 | AR19: 1.306352041 | AS19: 0.6750645649 | AT19: 1.306352041 | AU19: 1.322491836 | AW19: 0.2328849629 | AX19: 0.3771392352 | AY19: 0.3151803948 | AZ19: 0.02107279693 | BA19: 0.2802013423 | BB19: 0.2802013423 | BC19: 0.2452957464
B20: SAVE<XNAS> | C20: Spirit Airlines, Inc | D20: Transporte aéreo regular | E20: SAVE | F20: 723.7821466 | H20: 15.38829787 | I20: 7.400990099 | J20: 25.40350877 | K20: 8.243353783 | L20: 2.885245902 | M20: 8.243353783 | N20: 11.86427929 | P20: 7.613872509 | Q20: 6.914914976 | R20: 9.385023288 | S20: 7.119875551 | T20: 5.831396467 | U20: 7.119875551 | V20: 7.373016558 | X20: 0.1966291824 | Y20: 0.3257099569 | Z20: 0.3562773712 | AA20: 0.5632267927 | AB20: 0.8361764841 | AC20: 0.3562773712 | AD20: 0.4556039575 | AF20: 2.876078794 | AG20: 1.750840821 | AH20: 2.05023199 | AI20: 1.220146504 | AJ20: 0.3235265968 | AK20: 2.876078794 | AL20: 0.1124887807 | AM20: 1.644164941 | AO20: 1.760086415 | AP20: 1.174901506 | AQ20: 1.191456776 | AR20: 0.7198281016 | AS20: 0.1929422014 | AT20: 1.174901506 | AU20: 1.007843 | AW20: 0.3281534669 | AX20: 1.119680678 | AY20: 2.014705663 | AZ20: 3.365742586 | BA20: 4.633579423 | BB20: 2.014705663 | BC20: 2.292372363
B21: UAL<XNYS> | C21: United Airlines Hldg Inc | D21: Transporte aéreo regular | E21: UAL | F21: 7382.785583 | H21: 10.63941606 | I21: 9.601139601 | J21: 10.87402597 | K21: 7.607081174 | L21: 6.888888889 | M21: 9.601139601 | N21: 9.122110339 | P21: 4.814057528 | Q21: 5.411973458 | R21: 6.072206294 | S21: 5.625226154 | U21: 5.518599806 | V21: 5.480865858 | X21: 0.3360727035 | Y21: 0.4188662807 | Z21: 0.39231308 | AA21: 0.4693799103 | AB21: 0.7544374443 | AC21: 0.4188662807 | AD21: 0.4742138838 | AF21: 2.670490044 | AG21: 2.267478324 | AH21: 2.282485765 | AI21: 1.933103385 | AJ21: 0.6692415979 | AK21: 2.670490044 | AL21: 0.2506062883 | AM21: 1.964559823 | AO21: 0.6709350677 | AP21: 0.5483318454 | AQ21: 0.5645542082 | AR21: 0.5317468092 | AS21: 0.1564471809 | AT21: 0.5483318454 | AU21: 0.4944030223 | AW21: 1.152335709 | AX21: 1.876040375 | AY21: 1.948300795 | AZ21: 2.242221885 | BB21: 1.912170585 | BC21: 1.804724691
B22: VOLARA<XMEX> | C22: Volaris | D22: Transporte aéreo regular | E22: VOLARA | F22: 469.1795383 | H22: 8.915582902 | I22: -24.42024114 | J22: -11.24686622 | K22: 7.584101224 | L22: 17.58262808 | M22: 7.584101224 | N22: 11.36077073 | P22: 8.027914903 | Q22: 24.4024294 | R22: 1.62719311 | S22: 1.747593868 | T22: 0.6100144616 | U22: 1.747593868 | V22: 7.283029148 | X22: 0.05975813301 | Y22: 0.1795256494 | Z22: 0.2493828826 | AA22: 0.1991113167 | AB22: 0.3464559135 | AC22: 0.1991113167 | AD22: 0.2068467791 | AF22: 2.906992294 | AG22: 1.566127356 | AH22: 1.156218662 | AI22: 3.619542192 | AJ22: -2.816504629 | AK22: 3.619542192 | AL22: -0.7781383609 | AM22: 2.312220126 | AO22: 1.334539557 | AP22: 0.6421131474 | AQ22: 0.388368777 | AR22: 0.5759246635 | AS22: 0.3113923834 | AT22: 0.5759246635 | AU22: 0.6504677057 | AW22: -1.549635344 | AX22: -6.798457286 | AY22: -0.4606585105 | AZ22: -0.3086122244 | BA22: -0.4738061345 | BB22: -0.4738061345 | BC22: -x-
M23: -x- | N23: -x- | U23: -x- | V23: -x- | AC23: -x- | AD23: -x- | AK23: -x- | AL23: -x- | AM23: -x- | AT23: -x- | AU23: -x- | BB23: -x- | BC23: -x-
M24: -x- | N24: -x- | U24: -x- | V24: -x- | AC24: -x- | AD24: -x- | AK24: -x- | AL24: -x- | AM24: -x- | AT24: -x- | AU24: -x- | BB24: -x- | BC24: -x-
M25: -x- | N25: -x- | U25: -x- | V25: -x- | AC25: -x- | AD25: -x- | AK25: -x- | AL25: -x- | AM25: -x- | AT25: -x- | AU25: -x- | BB25: -x- | BC25: -x-
M26: -x- | N26: -x- | U26: -x- | V26: -x- | AC26: -x- | AD26: -x- | AK26: -x- | AL26: -x- | AM26: -x- | AT26: -x- | AU26: -x- | BB26: -x- | BC26: -x-
M27: -x- | N27: -x- | U27: -x- | V27: -x- | AC27: -x- | AD27: -x- | AK27: -x- | AL27: -x- | AM27: -x- | AT27: -x- | AU27: -x- | BB27: -x- | BC27: -x-
M28: -x- | N28: -x- | U28: -x- | V28: -x- | AC28: -x- | AD28: -x- | AK28: -x- | AL28: -x- | AM28: -x- | AT28: -x- | AU28: -x- | BB28: -x- | BC28: -x-
M29: -x- | N29: -x- | U29: -x- | V29: -x- | AC29: -x- | AD29: -x- | AK29: -x- | AL29: -x- | AM29: -x- | AT29: -x- | AU29: -x- | BB29: -x- | BC29: -x-
M30: -x- | N30: -x- | U30: -x- | V30: -x- | AC30: -x- | AD30: -x- | AK30: -x- | AL30: -x- | AM30: -x- | AT30: -x- | AU30: -x- | BB30: -x- | BC30: -x-
M31: -x- | N31: -x- | U31: -x- | V31: -x- | AC31: -x- | AD31: -x- | AK31: -x- | AL31: -x- | AM31: -x- | AT31: -x- | AU31: -x- | BB31: -x- | BC31: -x-
M32: -x- | N32: -x- | U32: -x- | V32: -x- | AC32: -x- | AD32: -x- | AK32: -x- | AL32: -x- | AM32: -x- | AT32: -x- | AU32: -x- | BB32: -x- | BC32: -x-
M33: -x- | N33: -x- | U33: -x- | V33: -x- | AC33: -x- | AD33: -x- | AK33: -x- | AL33: -x- | AM33: -x- | AT33: -x- | AU33: -x- | BB33: -x- | BC33: -x-
M34: -x- | N34: -x- | U34: -x- | V34: -x- | AC34: -x- | AD34: -x- | AK34: -x- | AL34: -x- | AM34: -x- | AT34: -x- | AU34: -x- | BB34: -x- | BC34: -x-
M35: -x- | N35: -x- | U35: -x- | V35: -x- | AC35: -x- | AD35: -x- | AK35: -x- | AL35: -x- | AM35: -x- | AT35: -x- | AU35: -x- | BB35: -x- | BC35: -x-
M36: -x- | N36: -x- | U36: -x- | V36: -x- | AC36: -x- | AD36: -x- | AK36: -x- | AL36: -x- | AM36: -x- | AT36: -x- | AU36: -x- | BB36: -x- | BC36: -x-
M37: -x- | N37: -x- | U37: -x- | V37: -x- | AC37: -x- | AD37: -x- | AK37: -x- | AL37: -x- | AM37: -x- | AT37: -x- | AU37: -x- | BB37: -x- | BC37: -x-
M38: -x- | N38: -x- | U38: -x- | V38: -x- | AC38: -x- | AD38: -x- | AK38: -x- | AL38: -x- | AM38: -x- | AT38: -x- | AU38: -x- | BB38: -x- | BC38: -x-
M39: -x- | N39: -x- | U39: -x- | V39: -x- | AC39: -x- | AD39: -x- | AK39: -x- | AL39: -x- | AM39: -x- | AT39: -x- | AU39: -x- | BB39: -x- | BC39: -x-
M40: -x- | N40: -x- | U40: -x- | V40: -x- | AC40: -x- | AD40: -x- | AK40: -x- | AL40: -x- | AM40: -x- | AT40: -x- | AU40: -x- | BB40: -x- | BC40: -x-
M41: -x- | N41: -x- | U41: -x- | V41: -x- | AC41: -x- | AD41: -x- | AK41: -x- | AL41: -x- | AM41: -x- | AT41: -x- | AU41: -x- | BB41: -x- | BC41: -x-
M42: -x- | N42: -x- | U42: -x- | V42: -x- | AC42: -x- | AD42: -x- | AK42: -x- | AL42: -x- | AM42: -x- | AT42: -x- | AU42: -x- | BB42: -x- | BC42: -x-
M43: -x- | N43: -x- | U43: -x- | V43: -x- | AC43: -x- | AD43: -x- | AK43: -x- | AL43: -x- | AM43: -x- | AT43: -x- | AU43: -x- | BB43: -x- | BC43: -x-
M44: -x- | N44: -x- | U44: -x- | V44: -x- | AC44: -x- | AD44: -x- | AK44: -x- | AL44: -x- | AM44: -x- | AT44: -x- | AU44: -x- | BB44: -x- | BC44: -x-
M45: -x- | N45: -x- | U45: -x- | V45: -x- | AC45: -x- | AD45: -x- | AK45: -x- | AL45: -x- | AM45: -x- | AT45: -x- | AU45: -x- | BB45: -x- | BC45: -x-
M46: -x- | N46: -x- | U46: -x- | V46: -x- | AC46: -x- | AD46: -x- | AK46: -x- | AL46: -x- | AM46: -x- | AT46: -x- | AU46: -x- | BB46: -x- | BC46: -x-
M47: -x- | N47: -x- | U47: -x- | V47: -x- | AC47: -x- | AD47: -x- | AK47: -x- | AL47: -x- | AM47: -x- | AT47: -x- | AU47: -x- | BB47: -x- | BC47: -x-
M48: -x- | N48: -x- | U48: -x- | V48: -x- | AC48: -x- | AD48: -x- | AK48: -x- | AL48: -x- | AM48: -x- | AT48: -x- | AU48: -x- | BB48: -x- | BC48: -x-
M49: -x- | N49: -x- | U49: -x- | V49: -x- | AC49: -x- | AD49: -x- | AK49: -x- | AL49: -x- | AM49: -x- | AT49: -x- | AU49: -x- | BB49: -x- | BC49: -x-
M50: -x- | N50: -x- | U50: -x- | V50: -x- | AC50: -x- | AD50: -x- | AK50: -x- | AL50: -x- | AM50: -x- | AT50: -x- | AU50: -x- | BB50: -x- | BC50: -x-
M51: -x- | N51: -x- | U51: -x- | V51: -x- | AC51: -x- | AD51: -x- | AK51: -x- | AL51: -x- | AM51: -x- | AT51: -x- | AU51: -x- | BB51: -x- | BC51: -x-
M52: -x- | N52: -x- | U52: -x- | V52: -x- | AC52: -x- | AD52: -x- | AK52: -x- | AL52: -x- | AM52: -x- | AT52: -x- | AU52: -x- | BB52: -x- | BC52: -x-
M53: -x- | N53: -x- | U53: -x- | V53: -x- | AC53: -x- | AD53: -x- | AK53: -x- | AL53: -x- | AM53: -x- | AT53: -x- | AU53: -x- | BB53: -x- | BC53: -x-
M54: -x- | N54: -x- | U54: -x- | V54: -x- | AC54: -x- | AD54: -x- | AK54: -x- | AL54: -x- | AM54: -x- | AT54: -x- | AU54: -x- | BB54: -x- | BC54: -x-
M55: -x- | N55: -x- | U55: -x- | V55: -x- | AC55: -x- | AD55: -x- | AK55: -x- | AL55: -x- | AM55: -x- | AT55: -x- | AU55: -x- | BB55: -x- | BC55: -x-
M56: -x- | N56: -x- | U56: -x- | V56: -x- | AC56: -x- | AD56: -x- | AK56: -x- | AL56: -x- | AM56: -x- | AT56: -x- | AU56: -x- | BB56: -x- | BC56: -x-
M57: -x- | N57: -x- | U57: -x- | V57: -x- | AC57: -x- | AD57: -x- | AK57: -x- | AL57: -x- | AM57: -x- | AT57: -x- | AU57: -x- | BB57: -x- | BC57: -x-
M58: -x- | N58: -x- | U58: -x- | V58: -x- | AC58: -x- | AD58: -x- | AK58: -x- | AL58: -x- | AM58: -x- | AT58: -x- | AU58: -x- | BB58: -x- | BC58: -x-
M59: -x- | N59: -x- | U59: -x- | V59: -x- | AC59: -x- | AD59: -x- | AK59: -x- | AL59: -x- | AM59: -x- | AT59: -x- | AU59: -x- | BB59: -x- | BC59: -x-
M60: -x- | N60: -x- | U60: -x- | V60: -x- | AC60: -x- | AD60: -x- | AK60: -x- | AL60: -x- | AM60: -x- | AT60: -x- | AU60: -x- | BB60: -x- | BC60: -x-
M61: -x- | N61: -x- | U61: -x- | V61: -x- | AC61: -x- | AD61: -x- | AK61: -x- | AL61: -x- | AM61: -x- | AT61: -x- | AU61: -x- | BB61: -x- | BC61: -x-
M62: -x- | N62: -x- | U62: -x- | V62: -x- | AC62: -x- | AD62: -x- | AK62: -x- | AL62: -x- | AM62: -x- | AT62: -x- | AU62: -x- | BB62: -x- | BC62: -x-
M63: -x- | N63: -x- | U63: -x- | V63: -x- | AC63: -x- | AD63: -x- | AK63: -x- | AL63: -x- | AM63: -x- | AT63: -x- | AU63: -x- | BB63: -x- | BC63: -x-
M64: -x- | N64: -x- | U64: -x- | V64: -x- | AC64: -x- | AD64: -x- | AK64: -x- | AL64: -x- | AM64: -x- | AT64: -x- | AU64: -x- | BB64: -x- | BC64: -x-
M65: -x- | N65: -x- | U65: -x- | V65: -x- | AC65: -x- | AD65: -x- | AK65: -x- | AL65: -x- | AM65: -x- | AT65: -x- | AU65: -x- | BB65: -x- | BC65: -x-
M66: -x- | N66: -x- | U66: -x- | V66: -x- | AC66: -x- | AD66: -x- | AK66: -x- | AL66: -x- | AM66: -x- | AT66: -x- | AU66: -x- | BB66: -x- | BC66: -x-
M67: -x- | N67: -x- | U67: -x- | V67: -x- | AC67: -x- | AD67: -x- | AK67: -x- | AL67: -x- | AM67: -x- | AT67: -x- | AU67: -x- | BB67: -x- | BC67: -x-
M68: -x- | N68: -x- | U68: -x- | V68: -x- | AC68: -x- | AD68: -x- | AK68: -x- | AL68: -x- | AM68: -x- | AT68: -x- | AU68: -x- | BB68: -x- | BC68: -x-
M69: -x- | N69: -x- | U69: -x- | V69: -x- | AC69: -x- | AD69: -x- | AK69: -x- | AL69: -x- | AM69: -x- | AT69: -x- | AU69: -x- | BB69: -x- | BC69: -x-
M70: =IFERROR(MEDIAN(H70:L70),"-x-") -> -x- | N70: =IFERROR(AVERAGEIFS(H70:L70,H70:L70,">0",H70:L70,"<50"),"-x-") -> -x- | U70: =IFERROR(MEDIAN(P70:T70),"-x-") -> -x- | V70: =IFERROR(AVERAGEIFS(P70:T70,P70:T70,">0",P70:T70,"<50"),"-x-") -> -x- | AC70: =IFERROR(MEDIAN(X70:AB70),"-x-") -> -x- | AD70: =IFERROR(AVERAGE(X70:AB70),"-x-") -> -x- | AK70: =IF(MAX(AF70:AJ70)=0,"-x-",MAX(AF70:AJ70)) -> -x- | AL70: =IFERROR(AJ70/AK70,"-x-") -> -x- | AM70: -x- | AT70: =IFERROR(MEDIAN(AO70:AS70),"-x-") -> -x- | AU70: =IFERROR(AVERAGEIFS(AO70:AS70,AO70:AS70,">0",AO70:AS70,"<50"),"-x-") -> -x- | BB70: =IFERROR(MEDIAN(AW70:BA70),"-x-") -> -x- | BC70: =IFERROR(AVERAGEIFS(AW70:BA70,AW70:BA70,">0",AW70:BA70,"<50"),"-x-") -> -x-
M71: -x- | N71: -x- | U71: -x- | V71: -x- | AC71: -x- | AD71: -x- | AK71: -x- | AL71: -x- | AM71: =IFERROR(AVERAGEIFS(AF71:AJ71,AF71:AJ71,">0",AF71:AJ71,"<30"),"-x-") -> -x- | AT71: -x- | AU71: -x- | BB71: -x- | BC71: -x-
M72: -x- | N72: -x- | U72: -x- | V72: -x- | AC72: -x- | AD72: -x- | AK72: -x- | AL72: -x- | AM72: -x- | AT72: -x- | AU72: -x- | BB72: -x- | BC72: -x-
M73: -x- | N73: -x- | U73: -x- | V73: -x- | AC73: -x- | AD73: -x- | AK73: -x- | AL73: -x- | AM73: -x- | AT73: -x- | AU73: -x- | BB73: -x- | BC73: -x-
M74: -x- | N74: -x- | U74: -x- | V74: -x- | AC74: -x- | AD74: -x- | AK74: -x- | AL74: -x- | AM74: -x- | AT74: -x- | AU74: -x- | BB74: -x- | BC74: -x-
M75: -x- | N75: -x- | U75: -x- | V75: -x- | AC75: -x- | AD75: -x- | AK75: -x- | AL75: -x- | AM75: -x- | AT75: -x- | AU75: -x- | BB75: -x- | BC75: -x-
M76: -x- | N76: -x- | U76: -x- | V76: -x- | AC76: -x- | AD76: -x- | AK76: -x- | AL76: -x- | AM76: -x- | AT76: -x- | AU76: -x- | BB76: -x- | BC76: -x-
M77: -x- | N77: -x- | U77: -x- | V77: -x- | AC77: -x- | AD77: -x- | AK77: -x- | AL77: -x- | AM77: -x- | AT77: -x- | AU77: -x- | BB77: -x- | BC77: -x-
M78: -x- | N78: -x- | U78: -x- | V78: -x- | AC78: -x- | AD78: -x- | AK78: -x- | AL78: -x- | AM78: -x- | AT78: -x- | AU78: -x- | BB78: -x- | BC78: -x-
M79: -x- | N79: -x- | U79: -x- | V79: -x- | AC79: -x- | AD79: -x- | AK79: -x- | AL79: -x- | AM79: -x- | AT79: -x- | AU79: -x- | BB79: -x- | BC79: -x-
M80: -x- | N80: -x- | U80: -x- | V80: -x- | AC80: -x- | AD80: -x- | AK80: -x- | AL80: -x- | AM80: -x- | AT80: -x- | AU80: -x- | BB80: -x- | BC80: -x-
M81: -x- | N81: -x- | U81: -x- | V81: -x- | AC81: -x- | AD81: -x- | AK81: -x- | AL81: -x- | AM81: -x- | AT81: -x- | AU81: -x- | BB81: -x- | BC81: -x-
M82: -x- | N82: -x- | U82: -x- | V82: -x- | AC82: -x- | AD82: -x- | AK82: -x- | AL82: -x- | AM82: -x- | AT82: -x- | AU82: -x- | BB82: -x- | BC82: -x-
M83: -x- | N83: -x- | U83: -x- | V83: -x- | AC83: -x- | AD83: -x- | AK83: -x- | AL83: -x- | AM83: -x- | AT83: -x- | AU83: -x- | BB83: -x- | BC83: -x-
M84: -x- | N84: -x- | U84: -x- | V84: -x- | AC84: -x- | AD84: -x- | AK84: -x- | AL84: -x- | AM84: -x- | AT84: -x- | AU84: -x- | BB84: -x- | BC84: -x-
M85: -x- | N85: -x- | U85: -x- | V85: -x- | AC85: -x- | AD85: -x- | AK85: -x- | AL85: -x- | AM85: -x- | AT85: -x- | AU85: -x- | BB85: -x- | BC85: -x-
M86: -x- | N86: -x- | U86: -x- | V86: -x- | AC86: -x- | AD86: -x- | AK86: -x- | AL86: -x- | AM86: -x- | AT86: -x- | AU86: -x- | BB86: -x- | BC86: -x-
M87: -x- | N87: -x- | U87: -x- | V87: -x- | AC87: -x- | AD87: -x- | AK87: -x- | AL87: -x- | AM87: -x- | AT87: -x- | AU87: -x- | BB87: -x- | BC87: -x-
M88: -x- | N88: -x- | U88: -x- | V88: -x- | AC88: -x- | AD88: -x- | AK88: -x- | AL88: -x- | AM88: -x- | AT88: -x- | AU88: -x- | BB88: -x- | BC88: -x-
M89: -x- | N89: -x- | U89: -x- | V89: -x- | AC89: -x- | AD89: -x- | AK89: -x- | AL89: -x- | AM89: -x- | AT89: -x- | AU89: -x- | BB89: -x- | BC89: -x-
M90: -x- | N90: -x- | U90: -x- | V90: -x- | AC90: -x- | AD90: -x- | AK90: -x- | AL90: -x- | AM90: -x- | AT90: -x- | AU90: -x- | BB90: -x- | BC90: -x-
M91: -x- | N91: -x- | U91: -x- | V91: -x- | AC91: -x- | AD91: -x- | AK91: -x- | AL91: -x- | AM91: -x- | AT91: -x- | AU91: -x- | BB91: -x- | BC91: -x-
M92: -x- | N92: -x- | U92: -x- | V92: -x- | AC92: -x- | AD92: -x- | AK92: -x- | AL92: -x- | AM92: -x- | AT92: -x- | AU92: -x- | BB92: -x- | BC92: -x-
M93: -x- | N93: -x- | U93: -x- | V93: -x- | AC93: -x- | AD93: -x- | AK93: -x- | AL93: -x- | AM93: -x- | AT93: -x- | AU93: -x- | BB93: -x- | BC93: -x-
M94: -x- | N94: -x- | U94: -x- | V94: -x- | AC94: -x- | AD94: -x- | AK94: -x- | AL94: -x- | AM94: -x- | AT94: -x- | AU94: -x- | BB94: -x- | BC94: -x-
M95: -x- | N95: -x- | U95: -x- | V95: -x- | AC95: -x- | AD95: -x- | AK95: -x- | AL95: -x- | AM95: -x- | AT95: -x- | AU95: -x- | BB95: -x- | BC95: -x-
M96: -x- | N96: -x- | U96: -x- | V96: -x- | AC96: -x- | AD96: -x- | AK96: -x- | AL96: -x- | AM96: -x- | AT96: -x- | AU96: -x- | BB96: -x- | BC96: -x-
M97: -x- | N97: -x- | U97: -x- | V97: -x- | AC97: -x- | AD97: -x- | AK97: -x- | AL97: -x- | AM97: -x- | AT97: -x- | AU97: -x- | BB97: -x- | BC97: -x-
M98: -x- | N98: -x- | U98: -x- | V98: -x- | AC98: -x- | AD98: -x- | AK98: -x- | AL98: -x- | AM98: -x- | AT98: -x- | AU98: -x- | BB98: -x- | BC98: -x-
M99: -x- | N99: -x- | U99: -x- | V99: -x- | AC99: -x- | AD99: -x- | AK99: -x- | AL99: -x- | AM99: -x- | AT99: -x- | AU99: -x- | BB99: -x- | BC99: -x-
M100: -x- | N100: -x- | U100: -x- | V100: -x- | AC100: -x- | AD100: -x- | AK100: -x- | AL100: -x- | AM100: -x- | AT100: -x- | AU100: -x- | BB100: -x- | BC100: -x-
M101: -x- | N101: -x- | U101: -x- | V101: -x- | AC101: -x- | AD101: -x- | AK101: -x- | AL101: -x- | AM101: -x- | AT101: -x- | AU101: -x- | BB101: -x- | BC101: -x-
M102: -x- | N102: -x- | U102: -x- | V102: -x- | AC102: -x- | AD102: -x- | AK102: -x- | AL102: -x- | AM102: -x- | AT102: -x- | AU102: -x- | BB102: -x- | BC102: -x-
M103: -x- | N103: -x- | U103: -x- | V103: -x- | AC103: -x- | AD103: -x- | AK103: -x- | AL103: -x- | AM103: -x- | AT103: -x- | AU103: -x- | BB103: -x- | BC103: -x-
M104: -x- | N104: -x- | U104: -x- | V104: -x- | AC104: -x- | AD104: -x- | AK104: -x- | AL104: -x- | AM104: -x- | AT104: -x- | AU104: -x- | BB104: -x- | BC104: -x-
M105: -x- | N105: -x- | U105: -x- | V105: -x- | AC105: -x- | AD105: -x- | AK105: -x- | AL105: -x- | AM105: -x- | AT105: -x- | AU105: -x- | BB105: -x- | BC105: -x-
M106: -x- | N106: -x- | U106: -x- | V106: -x- | AC106: -x- | AD106: -x- | AK106: -x- | AL106: -x- | AM106: -x- | AT106: -x- | AU106: -x- | BB106: -x- | BC106: -x-
M107: -x- | N107: -x- | U107: -x- | V107: -x- | AC107: -x- | AD107: -x- | AK107: -x- | AL107: -x- | AM107: -x- | AT107: -x- | AU107: -x- | BB107: -x- | BC107: -x-
M108: -x- | N108: -x- | U108: -x- | V108: -x- | AC108: -x- | AD108: -x- | AK108: -x- | AL108: -x- | AM108: -x- | AT108: -x- | AU108: -x- | BB108: -x- | BC108: -x-
M109: -x- | N109: -x- | U109: -x- | V109: -x- | AC109: -x- | AD109: -x- | AK109: -x- | AL109: -x- | AM109: -x- | AT109: -x- | AU109: -x- | BB109: -x- | BC109: -x-
M110: -x- | N110: -x- | U110: -x- | V110: -x- | AC110: -x- | AD110: -x- | AK110: -x- | AL110: -x- | AM110: -x- | AT110: -x- | AU110: -x- | BB110: -x- | BC110: -x-
M111: -x- | N111: -x- | U111: -x- | V111: -x- | AC111: -x- | AD111: -x- | AK111: -x- | AL111: -x- | AM111: -x- | AT111: -x- | AU111: -x- | BB111: -x- | BC111: -x-
M112: -x- | N112: -x- | U112: -x- | V112: -x- | AC112: -x- | AD112: -x- | AK112: -x- | AL112: -x- | AM112: -x- | AT112: -x- | AU112: -x- | BB112: -x- | BC112: -x-
M113: -x- | N113: -x- | U113: -x- | V113: -x- | AC113: -x- | AD113: -x- | AK113: -x- | AL113: -x- | AM113: -x- | AT113: -x- | AU113: -x- | BB113: -x- | BC113: -x-
M114: -x- | N114: -x- | U114: -x- | V114: -x- | AC114: -x- | AD114: -x- | AK114: -x- | AL114: -x- | AM114: -x- | AT114: -x- | AU114: -x- | BB114: -x- | BC114: -x-
M115: -x- | N115: -x- | U115: -x- | V115: -x- | AC115: -x- | AD115: -x- | AK115: -x- | AL115: -x- | AM115: -x- | AT115: -x- | AU115: -x- | BB115: -x- | BC115: -x-
M116: -x- | N116: -x- | U116: -x- | V116: -x- | AC116: -x- | AD116: -x- | AK116: -x- | AL116: -x- | AM116: -x- | AT116: -x- | AU116: -x- | BB116: -x- | BC116: -x-
M117: -x- | N117: -x- | U117: -x- | V117: -x- | AC117: -x- | AD117: -x- | AK117: -x- | AL117: -x- | AM117: -x- | AT117: -x- | AU117: -x- | BB117: -x- | BC117: -x-
M118: -x- | N118: -x- | U118: -x- | V118: -x- | AC118: -x- | AD118: -x- | AK118: -x- | AL118: -x- | AM118: -x- | AT118: -x- | AU118: -x- | BB118: -x- | BC118: -x-
M119: -x- | N119: -x- | U119: -x- | V119: -x- | AC119: -x- | AD119: -x- | AK119: -x- | AL119: -x- | AM119: -x- | AT119: -x- | AU119: -x- | BB119: -x- | BC119: -x-
M120: -x- | N120: -x- | U120: -x- | V120: -x- | AC120: -x- | AD120: -x- | AK120: -x- | AL120: -x- | AM120: -x- | AT120: -x- | AU120: -x- | BB120: -x- | BC120: -x-
M121: -x- | N121: -x- | U121: -x- | V121: -x- | AC121: -x- | AD121: -x- | AK121: -x- | AL121: -x- | AM121: -x- | AT121: -x- | AU121: -x- | BB121: -x- | BC121: -x-
M122: -x- | N122: -x- | U122: -x- | V122: -x- | AC122: -x- | AD122: -x- | AK122: -x- | AL122: -x- | AM122: -x- | AT122: -x- | AU122: -x- | BB122: -x- | BC122: -x-
M123: -x- | N123: -x- | U123: -x- | V123: -x- | AC123: -x- | AD123: -x- | AK123: -x- | AL123: -x- | AM123: -x- | AT123: -x- | AU123: -x- | BB123: -x- | BC123: -x-
M124: -x- | N124: -x- | U124: -x- | V124: -x- | AC124: -x- | AD124: -x- | AK124: -x- | AL124: -x- | AM124: -x- | AT124: -x- | AU124: -x- | BB124: -x- | BC124: -x-
M125: -x- | N125: -x- | U125: -x- | V125: -x- | AC125: -x- | AD125: -x- | AK125: -x- | AL125: -x- | AM125: -x- | AT125: -x- | AU125: -x- | BB125: -x- | BC125: -x-
M126: -x- | N126: -x- | U126: -x- | V126: -x- | AC126: -x- | AD126: -x- | AK126: -x- | AL126: -x- | AM126: -x- | AT126: -x- | AU126: -x- | BB126: -x- | BC126: -x-
M127: -x- | N127: -x- | U127: -x- | V127: -x- | AC127: -x- | AD127: -x- | AK127: -x- | AL127: -x- | AM127: -x- | AT127: -x- | AU127: -x- | BB127: -x- | BC127: -x-
M128: -x- | N128: -x- | U128: -x- | V128: -x- | AC128: -x- | AD128: -x- | AK128: -x- | AL128: -x- | AM128: -x- | AT128: -x- | AU128: -x- | BB128: -x- | BC128: -x-
M129: -x- | N129: -x- | U129: -x- | V129: -x- | AC129: -x- | AD129: -x- | AK129: -x- | AL129: -x- | AM129: -x- | AT129: -x- | AU129: -x- | BB129: -x- | BC129: -x-
M130: -x- | N130: -x- | U130: -x- | V130: -x- | AC130: -x- | AD130: -x- | AK130: -x- | AL130: -x- | AM130: -x- | AT130: -x- | AU130: -x- | BB130: -x- | BC130: -x-
M131: -x- | N131: -x- | U131: -x- | V131: -x- | AC131: -x- | AD131: -x- | AK131: -x- | AL131: -x- | AM131: -x- | AT131: -x- | AU131: -x- | BB131: -x- | BC131: -x-
M132: -x- | N132: -x- | U132: -x- | V132: -x- | AC132: -x- | AD132: -x- | AK132: -x- | AL132: -x- | AM132: -x- | AT132: -x- | AU132: -x- | BB132: -x- | BC132: -x-
M133: -x- | N133: -x- | U133: -x- | V133: -x- | AC133: -x- | AD133: -x- | AK133: -x- | AL133: -x- | AM133: -x- | AT133: -x- | AU133: -x- | BB133: -x- | BC133: -x-
M134: =IFERROR(MEDIAN(H134:L134),"-x-") -> -x- | N134: =IFERROR(AVERAGEIFS(H134:L134,H134:L134,">0",H134:L134,"<50"),"-x-") -> -x- | U134: =IFERROR(MEDIAN(P134:T134),"-x-") -> -x- | V134: =IFERROR(AVERAGEIFS(P134:T134,P134:T134,">0",P134:T134,"<50"),"-x-") -> -x- | AC134: =IFERROR(MEDIAN(X134:AB134),"-x-") -> -x- | AD134: =IFERROR(AVERAGE(X134:AB134),"-x-") -> -x- | AK134: =IF(MAX(AF134:AJ134)=0,"-x-",MAX(AF134:AJ134)) -> -x- | AL134: =IFERROR(AJ134/AK134,"-x-") -> -x- | AM134: -x- | AT134: =IFERROR(MEDIAN(AO134:AS134),"-x-") -> -x- | AU134: =IFERROR(AVERAGEIFS(AO134:AS134,AO134:AS134,">0",AO134:AS134,"<50"),"-x-") -> -x- | BB134: =IFERROR(MEDIAN(AW134:BA134),"-x-") -> -x- | BC134: =IFERROR(AVERAGEIFS(AW134:BA134,AW134:BA134,">0",AW134:BA134,"<50"),"-x-") -> -x-
M135: -x- | N135: -x- | U135: -x- | V135: -x- | AC135: -x- | AD135: -x- | AK135: -x- | AL135: -x- | AM135: =IFERROR(AVERAGEIFS(AF135:AJ135,AF135:AJ135,">0",AF135:AJ135,"<30"),"-x-") -> -x- | AT135: -x- | AU135: -x- | BB135: -x- | BC135: -x-
M136: -x- | N136: -x- | U136: -x- | V136: -x- | AC136: -x- | AD136: -x- | AK136: -x- | AL136: -x- | AM136: -x- | AT136: -x- | AU136: -x- | BB136: -x- | BC136: -x-
M137: -x- | N137: -x- | U137: -x- | V137: -x- | AC137: -x- | AD137: -x- | AK137: -x- | AL137: -x- | AM137: -x- | AT137: -x- | AU137: -x- | BB137: -x- | BC137: -x-
M138: -x- | N138: -x- | U138: -x- | V138: -x- | AC138: -x- | AD138: -x- | AK138: -x- | AL138: -x- | AM138: -x- | AT138: -x- | AU138: -x- | BB138: -x- | BC138: -x-
M139: -x- | N139: -x- | U139: -x- | V139: -x- | AC139: -x- | AD139: -x- | AK139: -x- | AL139: -x- | AM139: -x- | AT139: -x- | AU139: -x- | BB139: -x- | BC139: -x-
M140: -x- | N140: -x- | U140: -x- | V140: -x- | AC140: -x- | AD140: -x- | AK140: -x- | AL140: -x- | AM140: -x- | AT140: -x- | AU140: -x- | BB140: -x- | BC140: -x-
M141: -x- | N141: -x- | U141: -x- | V141: -x- | AC141: -x- | AD141: -x- | AK141: -x- | AL141: -x- | AM141: -x- | AT141: -x- | AU141: -x- | BB141: -x- | BC141: -x-
M142: -x- | N142: -x- | U142: -x- | V142: -x- | AC142: -x- | AD142: -x- | AK142: -x- | AL142: -x- | AM142: -x- | AT142: -x- | AU142: -x- | BB142: -x- | BC142: -x-
M143: -x- | N143: -x- | U143: -x- | V143: -x- | AC143: -x- | AD143: -x- | AK143: -x- | AL143: -x- | AM143: -x- | AT143: -x- | AU143: -x- | BB143: -x- | BC143: -x-
M144: -x- | N144: -x- | U144: -x- | V144: -x- | AC144: -x- | AD144: -x- | AK144: -x- | AL144: -x- | AM144: -x- | AT144: -x- | AU144: -x- | BB144: -x- | BC144: -x-
M145: -x- | N145: -x- | U145: -x- | V145: -x- | AC145: -x- | AD145: -x- | AK145: -x- | AL145: -x- | AM145: -x- | AT145: -x- | AU145: -x- | BB145: -x- | BC145: -x-
M146: -x- | N146: -x- | U146: -x- | V146: -x- | AC146: -x- | AD146: -x- | AK146: -x- | AL146: -x- | AM146: -x- | AT146: -x- | AU146: -x- | BB146: -x- | BC146: -x-
M147: -x- | N147: -x- | U147: -x- | V147: -x- | AC147: -x- | AD147: -x- | AK147: -x- | AL147: -x- | AM147: -x- | AT147: -x- | AU147: -x- | BB147: -x- | BC147: -x-
M148: -x- | N148: -x- | U148: -x- | V148: -x- | AC148: -x- | AD148: -x- | AK148: -x- | AL148: -x- | AM148: -x- | AT148: -x- | AU148: -x- | BB148: -x- | BC148: -x-
M149: -x- | N149: -x- | U149: -x- | V149: -x- | AC149: -x- | AD149: -x- | AK149: -x- | AL149: -x- | AM149: -x- | AT149: -x- | AU149: -x- | BB149: -x- | BC149: -x-
M150: -x- | N150: -x- | U150: -x- | V150: -x- | AC150: -x- | AD150: -x- | AK150: -x- | AL150: -x- | AM150: -x- | AT150: -x- | AU150: -x- | BB150: -x- | BC150: -x-
M151: -x- | N151: -x- | U151: -x- | V151: -x- | AC151: -x- | AD151: -x- | AK151: -x- | AL151: -x- | AM151: -x- | AT151: -x- | AU151: -x- | BB151: -x- | BC151: -x-
M152: -x- | N152: -x- | U152: -x- | V152: -x- | AC152: -x- | AD152: -x- | AK152: -x- | AL152: -x- | AM152: -x- | AT152: -x- | AU152: -x- | BB152: -x- | BC152: -x-
M153: -x- | N153: -x- | U153: -x- | V153: -x- | AC153: -x- | AD153: -x- | AK153: -x- | AL153: -x- | AM153: -x- | AT153: -x- | AU153: -x- | BB153: -x- | BC153: -x-
M154: -x- | N154: -x- | U154: -x- | V154: -x- | AC154: -x- | AD154: -x- | AK154: -x- | AL154: -x- | AM154: -x- | AT154: -x- | AU154: -x- | BB154: -x- | BC154: -x-
M155: -x- | N155: -x- | U155: -x- | V155: -x- | AC155: -x- | AD155: -x- | AK155: -x- | AL155: -x- | AM155: -x- | AT155: -x- | AU155: -x- | BB155: -x- | BC155: -x-
M156: -x- | N156: -x- | U156: -x- | V156: -x- | AC156: -x- | AD156: -x- | AK156: -x- | AL156: -x- | AM156: -x- | AT156: -x- | AU156: -x- | BB156: -x- | BC156: -x-
M157: -x- | N157: -x- | U157: -x- | V157: -x- | AC157: -x- | AD157: -x- | AK157: -x- | AL157: -x- | AM157: -x- | AT157: -x- | AU157: -x- | BB157: -x- | BC157: -x-
M158: -x- | N158: -x- | U158: -x- | V158: -x- | AC158: -x- | AD158: -x- | AK158: -x- | AL158: -x- | AM158: -x- | AT158: -x- | AU158: -x- | BB158: -x- | BC158: -x-
M159: -x- | N159: -x- | U159: -x- | V159: -x- | AC159: -x- | AD159: -x- | AK159: -x- | AL159: -x- | AM159: -x- | AT159: -x- | AU159: -x- | BB159: -x- | BC159: -x-
M160: -x- | N160: -x- | U160: -x- | V160: -x- | AC160: -x- | AD160: -x- | AK160: -x- | AL160: -x- | AM160: -x- | AT160: -x- | AU160: -x- | BB160: -x- | BC160: -x-
M161: -x- | N161: -x- | U161: -x- | V161: -x- | AC161: -x- | AD161: -x- | AK161: -x- | AL161: -x- | AM161: -x- | AT161: -x- | AU161: -x- | BB161: -x- | BC161: -x-
M162: -x- | N162: -x- | U162: -x- | V162: -x- | AC162: -x- | AD162: -x- | AK162: -x- | AL162: -x- | AM162: -x- | AT162: -x- | AU162: -x- | BB162: -x- | BC162: -x-
M163: -x- | N163: -x- | U163: -x- | V163: -x- | AC163: -x- | AD163: -x- | AK163: -x- | AL163: -x- | AM163: -x- | AT163: -x- | AU163: -x- | BB163: -x- | BC163: -x-
M164: -x- | N164: -x- | U164: -x- | V164: -x- | AC164: -x- | AD164: -x- | AK164: -x- | AL164: -x- | AM164: -x- | AT164: -x- | AU164: -x- | BB164: -x- | BC164: -x-
M165: -x- | N165: -x- | U165: -x- | V165: -x- | AC165: -x- | AD165: -x- | AK165: -x- | AL165: -x- | AM165: -x- | AT165: -x- | AU165: -x- | BB165: -x- | BC165: -x-
M166: -x- | N166: -x- | U166: -x- | V166: -x- | AC166: -x- | AD166: -x- | AK166: -x- | AL166: -x- | AM166: -x- | AT166: -x- | AU166: -x- | BB166: -x- | BC166: -x-
M167: -x- | N167: -x- | U167: -x- | V167: -x- | AC167: -x- | AD167: -x- | AK167: -x- | AL167: -x- | AM167: -x- | AT167: -x- | AU167: -x- | BB167: -x- | BC167: -x-
M168: -x- | N168: -x- | U168: -x- | V168: -x- | AC168: -x- | AD168: -x- | AK168: -x- | AL168: -x- | AM168: -x- | AT168: -x- | AU168: -x- | BB168: -x- | BC168: -x-
M169: -x- | N169: -x- | U169: -x- | V169: -x- | AC169: -x- | AD169: -x- | AK169: -x- | AL169: -x- | AM169: -x- | AT169: -x- | AU169: -x- | BB169: -x- | BC169: -x-
M170: -x- | N170: -x- | U170: -x- | V170: -x- | AC170: -x- | AD170: -x- | AK170: -x- | AL170: -x- | AM170: -x- | AT170: -x- | AU170: -x- | BB170: -x- | BC170: -x-
M171: -x- | N171: -x- | U171: -x- | V171: -x- | AC171: -x- | AD171: -x- | AK171: -x- | AL171: -x- | AM171: -x- | AT171: -x- | AU171: -x- | BB171: -x- | BC171: -x-
M172: -x- | N172: -x- | U172: -x- | V172: -x- | AC172: -x- | AD172: -x- | AK172: -x- | AL172: -x- | AM172: -x- | AT172: -x- | AU172: -x- | BB172: -x- | BC172: -x-
M173: -x- | N173: -x- | U173: -x- | V173: -x- | AC173: -x- | AD173: -x- | AK173: -x- | AL173: -x- | AM173: -x- | AT173: -x- | AU173: -x- | BB173: -x- | BC173: -x-
M174: -x- | N174: -x- | U174: -x- | V174: -x- | AC174: -x- | AD174: -x- | AK174: -x- | AL174: -x- | AM174: -x- | AT174: -x- | AU174: -x- | BB174: -x- | BC174: -x-
M175: -x- | N175: -x- | U175: -x- | V175: -x- | AC175: -x- | AD175: -x- | AK175: -x- | AL175: -x- | AM175: -x- | AT175: -x- | AU175: -x- | BB175: -x- | BC175: -x-
M176: -x- | N176: -x- | U176: -x- | V176: -x- | AC176: -x- | AD176: -x- | AK176: -x- | AL176: -x- | AM176: -x- | AT176: -x- | AU176: -x- | BB176: -x- | BC176: -x-
M177: -x- | N177: -x- | U177: -x- | V177: -x- | AC177: -x- | AD177: -x- | AK177: -x- | AL177: -x- | AM177: -x- | AT177: -x- | AU177: -x- | BB177: -x- | BC177: -x-
M178: -x- | N178: -x- | U178: -x- | V178: -x- | AC178: -x- | AD178: -x- | AK178: -x- | AL178: -x- | AM178: -x- | AT178: -x- | AU178: -x- | BB178: -x- | BC178: -x-
M179: -x- | N179: -x- | U179: -x- | V179: -x- | AC179: -x- | AD179: -x- | AK179: -x- | AL179: -x- | AM179: -x- | AT179: -x- | AU179: -x- | BB179: -x- | BC179: -x-
M180: -x- | N180: -x- | U180: -x- | V180: -x- | AC180: -x- | AD180: -x- | AK180: -x- | AL180: -x- | AM180: -x- | AT180: -x- | AU180: -x- | BB180: -x- | BC180: -x-
M181: -x- | N181: -x- | U181: -x- | V181: -x- | AC181: -x- | AD181: -x- | AK181: -x- | AL181: -x- | AM181: -x- | AT181: -x- | AU181: -x- | BB181: -x- | BC181: -x-
M182: -x- | N182: -x- | U182: -x- | V182: -x- | AC182: -x- | AD182: -x- | AK182: -x- | AL182: -x- | AM182: -x- | AT182: -x- | AU182: -x- | BB182: -x- | BC182: -x-
M183: -x- | N183: -x- | U183: -x- | V183: -x- | AC183: -x- | AD183: -x- | AK183: -x- | AL183: -x- | AM183: -x- | AT183: -x- | AU183: -x- | BB183: -x- | BC183: -x-
M184: -x- | N184: -x- | U184: -x- | V184: -x- | AC184: -x- | AD184: -x- | AK184: -x- | AL184: -x- | AM184: -x- | AT184: -x- | AU184: -x- | BB184: -x- | BC184: -x-
M185: -x- | N185: -x- | U185: -x- | V185: -x- | AC185: -x- | AD185: -x- | AK185: -x- | AL185: -x- | AM185: -x- | AT185: -x- | AU185: -x- | BB185: -x- | BC185: -x-
M186: -x- | N186: -x- | U186: -x- | V186: -x- | AC186: -x- | AD186: -x- | AK186: -x- | AL186: -x- | AM186: -x- | AT186: -x- | AU186: -x- | BB186: -x- | BC186: -x-
M187: -x- | N187: -x- | U187: -x- | V187: -x- | AC187: -x- | AD187: -x- | AK187: -x- | AL187: -x- | AM187: -x- | AT187: -x- | AU187: -x- | BB187: -x- | BC187: -x-
M188: -x- | N188: -x- | U188: -x- | V188: -x- | AC188: -x- | AD188: -x- | AK188: -x- | AL188: -x- | AM188: -x- | AT188: -x- | AU188: -x- | BB188: -x- | BC188: -x-
M189: -x- | N189: -x- | U189: -x- | V189: -x- | AC189: -x- | AD189: -x- | AK189: -x- | AL189: -x- | AM189: -x- | AT189: -x- | AU189: -x- | BB189: -x- | BC189: -x-
M190: -x- | N190: -x- | U190: -x- | V190: -x- | AC190: -x- | AD190: -x- | AK190: -x- | AL190: -x- | AM190: -x- | AT190: -x- | AU190: -x- | BB190: -x- | BC190: -x-
M191: -x- | N191: -x- | U191: -x- | V191: -x- | AC191: -x- | AD191: -x- | AK191: -x- | AL191: -x- | AM191: -x- | AT191: -x- | AU191: -x- | BB191: -x- | BC191: -x-
M192: -x- | N192: -x- | U192: -x- | V192: -x- | AC192: -x- | AD192: -x- | AK192: -x- | AL192: -x- | AM192: -x- | AT192: -x- | AU192: -x- | BB192: -x- | BC192: -x-
M193: -x- | N193: -x- | U193: -x- | V193: -x- | AC193: -x- | AD193: -x- | AK193: -x- | AL193: -x- | AM193: -x- | AT193: -x- | AU193: -x- | BB193: -x- | BC193: -x-
M194: -x- | N194: -x- | U194: -x- | V194: -x- | AC194: -x- | AD194: -x- | AK194: -x- | AL194: -x- | AM194: -x- | AT194: -x- | AU194: -x- | BB194: -x- | BC194: -x-
M195: -x- | N195: -x- | U195: -x- | V195: -x- | AC195: -x- | AD195: -x- | AK195: -x- | AL195: -x- | AM195: -x- | AT195: -x- | AU195: -x- | BB195: -x- | BC195: -x-
M196: -x- | N196: -x- | U196: -x- | V196: -x- | AC196: -x- | AD196: -x- | AK196: -x- | AL196: -x- | AM196: -x- | AT196: -x- | AU196: -x- | BB196: -x- | BC196: -x-
M197: -x- | N197: -x- | U197: -x- | V197: -x- | AC197: -x- | AD197: -x- | AK197: -x- | AL197: -x- | AM197: -x- | AT197: -x- | AU197: -x- | BB197: -x- | BC197: -x-
M198: =IFERROR(MEDIAN(H198:L198),"-x-") -> -x- | N198: =IFERROR(AVERAGEIFS(H198:L198,H198:L198,">0",H198:L198,"<50"),"-x-") -> -x- | U198: =IFERROR(MEDIAN(P198:T198),"-x-") -> -x- | V198: =IFERROR(AVERAGEIFS(P198:T198,P198:T198,">0",P198:T198,"<50"),"-x-") -> -x- | AC198: =IFERROR(MEDIAN(X198:AB198),"-x-") -> -x- | AD198: =IFERROR(AVERAGE(X198:AB198),"-x-") -> -x- | AK198: =IF(MAX(AF198:AJ198)=0,"-x-",MAX(AF198:AJ198)) -> -x- | AL198: =IFERROR(AJ198/AK198,"-x-") -> -x- | AM198: -x- | AT198: =IFERROR(MEDIAN(AO198:AS198),"-x-") -> -x- | AU198: =IFERROR(AVERAGEIFS(AO198:AS198,AO198:AS198,">0",AO198:AS198,"<50"),"-x-") -> -x- | BB198: =IFERROR(MEDIAN(AW198:BA198),"-x-") -> -x- | BC198: =IFERROR(AVERAGEIFS(AW198:BA198,AW198:BA198,">0",AW198:BA198,"<50"),"-x-") -> -x-
M199: =IFERROR(MEDIAN(H199:L199),"-x-") -> -x- | N199: -x- | U199: =IFERROR(MEDIAN(P199:T199),"-x-") -> -x- | V199: -x- | AC199: =IFERROR(MEDIAN(X199:AB199),"-x-") -> -x- | AD199: -x- | AK199: =IF(MAX(AF199:AJ199)=0,"-x-",MAX(AF199:AJ199)) -> -x- | AL199: =IFERROR(AJ199/AK199,"-x-") -> -x- | AM199: =IFERROR(AVERAGEIFS(AF199:AJ199,AF199:AJ199,">0",AF199:AJ199,"<30"),"-x-") -> -x- | AT199: =IFERROR(MEDIAN(AO199:AS199),"-x-") -> -x- | AU199: -x- | BB199: =IFERROR(MEDIAN(AW199:BA199),"-x-") -> -x- | BC199: -x-
M200: =IFERROR(MEDIAN(H200:L200),"-x-") -> -x- | N200: -x- | U200: =IFERROR(MEDIAN(P200:T200),"-x-") -> -x- | V200: -x- | AC200: =IFERROR(MEDIAN(X200:AB200),"-x-") -> -x- | AD200: -x- | AK200: =IF(MAX(AF200:AJ200)=0,"-x-",MAX(AF200:AJ200)) -> -x- | AL200: =IFERROR(AJ200/AK200,"-x-") -> -x- | AM200: -x- | AT200: =IFERROR(MEDIAN(AO200:AS200),"-x-") -> -x- | AU200: -x- | BB200: =IFERROR(MEDIAN(AW200:BA200),"-x-") -> -x- | BC200: -x-

Sheet Dividends
B2: Date: | C2: =Factsheet!AC3 -> 2020-05-08 | D2: ← Do not modify
F3: DIVIDENDS ANNUALIZED
F5: =EOMONTH(H5,-12) -> 2016-12-31 | H5: =EOMONTH(J5,-12) -> 2017-12-31 | J5: =EOMONTH(L5,-12) -> 2018-12-31 | L5: =DATE(YEAR(N5)-1,12,31) -> 2019-12-31 | N5: =$C$2 -> 2020-05-08 | P5: Last 5 Years Indicators
B6: =_xll.ECOSECURITIES("stock","active","true","USA;COL;CHL;MEX;PER;ARG;BRA","xnys;xnas;xbog;xsgo;XLIM;XMEX;XBSP;XBUE",,,"SECTOR NAICS="&SUBSTITUTE(_xll.ECONOMATICA(Factsheet!F5,"SECTOR NAICS"),",","\,")) -> Codigo | C6: =_xll.ECONOMATICA($B$7:$B$195,"name") -> Nombre | D6: =_xll.ECONOMATICA($B$7:$B$198,"SECTOR NAICS",,,,,,,,,"SECTOR NAICS") -> SECTOR NAICS | E6: =_xll.ECONOMATICA($B$7:$B$198,"Ticker",,,,,,,,,"Ticker") -> Ticker | F6: =_xll.ECONOMATICA($B$7:$B$195,"Div Yld (start)",,F5,,,"usd","DECIMAL",,,"% Dividend Yield") -> % Dividend Yield | G6: =_xll.ECONOMATICA($B$7:$B$195,"Divid per Share",,F5,,,"usd",,,,"$") -> $ | H6: =_xll.ECONOMATICA($B$7:$B$195,"Div Yld (start)",,H5,,,"usd","DECIMAL",,,"% Dividend Yield") -> % Dividend Yield | I6: =_xll.ECONOMATICA($B$7:$B$195,"Divid per Share",,H5,,,"USD",,,,"$") -> $ | J6: =_xll.ECONOMATICA($B$7:$B$195,"Div Yld (start)",,J5,,,"USD","DECIMAL",,,"% Dividend Yield") -> % Dividend Yield | K6: =_xll.ECONOMATICA($B$7:$B$195,"Divid per Share",,J5,,,"USD",,,,"$") -> $ | L6: =_xll.ECONOMATICA($B$7:$B$195,"Div Yld (start)",,L5,,,"USD","DECIMAL",,,"% Dividend Yield") -> % Dividend Yield | M6: =_xll.ECONOMATICA($B$7:$B$195,"Divid per Share",,L5,,,"USD",,,,"$") -> $ | N6: =_xll.ECONOMATICA($B$7:$B$195,"Div Yld (start)",,N5,,,"USD","DECIMAL",,,"% Dividend Yield") -> % Dividend Yield | O6: =_xll.ECONOMATICA($B$7:$B$195,"Divid per Share",,N5,,,"USD",,,,"$") -> $ | P6: AVG | Q6: Median | R6: Max | S6: Min
B7: ALK<XNYS> | C7: Alaska Air Group, Inc | D7: Transporte aéreo regular | E7: ALK | F7: 0.01366289902 | G7: 1.1 | H7: 0.01352417446 | I7: 1.2 | J7: 0.01741259693 | K7: 1.28 | L7: 0.02300739523 | M7: 1.4 | N7: 0.02347998023 | O7: 1.425 | P7: =IF(MAX(,,F7,H7,J7,L7,N7)=0,"",AVERAGE(,,F7,H7,J7,L7,N7)) -> 0.01301243512 | Q7: =IF(MAX(,,F7,H7,J7,L7,N7)=0,"",MEDIAN(,,F7,H7,J7,L7,N7)) -> 0.01366289902 | R7: =IF(MAX(,,F7,H7,J7,L7,N7)=0,"",MAX(,,F7,H7,J7,L7,N7)) -> 0.02347998023 | S7: =IF(MAX(,,F7,H7,J7,L7,N7)=0,"",MIN(,,F7,H7,J7,L7,N7)) -> 0
B8: ALGT<XNAS> | C8: Allegiant Travel Co | D8: Transporte aéreo regular | E8: ALGT | F8: 0.01430018471 | G8: 2.4 | H8: 0.01682692308 | I8: 2.8 | J8: 0.01809369952 | K8: 2.8 | L8: 0.02793853522 | M8: 2.8 | N8: 0.0197002744 | O8: 2.8 | P8: 0.01383708813 | Q8: =IF(MAX(,,F8,H8,J8,L8,N8)=0,"",MEDIAN(,,F8,H8,J8,L8,N8)) -> 0.01682692308 | R8: 0.02793853522 | S8: 0
B9: AAL<XNAS> | C9: American Airlines Group Inc | D9: Transporte aéreo regular | E9: AAL | F9: 0.009445100354 | G9: 0.4 | H9: 0.008567144999 | I9: 0.4 | J9: 0.007687872381 | K9: 0.4 | L9: 0.01245717845 | M9: 0.4 | N9: 0.008888888889 | O9: 0.3 | P9: 0.006720883582 | Q9: 0.008567144999 | R9: 0.01245717845 | S9: 0
B10: PFAVH<XBOG> | C10: Avianca Holdings S.A. | D10: Transporte aéreo regular | E10: PFAVH | F10: 0.03131292087 | G10: 0.01682145805 | H10: 0.0215489742 | I10: 0.02568990076 | J10: 0.03372694632 | K10: 0.0334814535 | L10: 0.02926279222 | M10: 0.01483239291 | N10: 0.03296008251 | O10: 0.01483239291 | P10: 0.02125881659 | Q10: 0.02926279222 | R10: 0.03372694632 | S10: 0
B11: AZUL4<XBSP> | C11: Azul S.A. | D11: Transporte aéreo regular | E11: AZUL4 | J11: 0 | K11: 0 | L11: 0 | M11: 0 | N11: 0 | O11: 0
B12: CVA<XSGO> | C12: Costa Verde Aeronautica S.A. | D12: Transporte aéreo regular | E12: CVA | G12: 0 | I12: 0.02211287363 | K12: 0.02681685235 | M12: 0.009038276544 | O12: 0.1996657579
B13: DAL<XNYS> | C13: Delta Air Lines, Inc | D13: Transporte aéreo regular | E13: DAL | F13: 0.01331623594 | G13: 0.675 | H13: 0.02063427526 | I13: 1.015 | J13: 0.02339285714 | K13: 1.31 | L13: 0.03016032064 | M13: 1.505 | N13: 0.02139061116 | O13: 1.2075 | P13: 0.01555632859 | Q13: 0.02063427526 | R13: 0.03016032064 | S13: 0
B14: GOLL4<XBSP> | C14: Gol | D14: Transporte aéreo regular | E14: GOLL4 | F14: 0 | G14: 0 | H14: 0 | I14: 0 | J14: 0 | K14: 0 | L14: 0 | M14: 0 | N14: 0 | O14: 0
B15: HA<XNAS> | C15: Hawaiian Hldg Inc | D15: Transporte aéreo regular | E15: HA | F15: 0 | G15: 0 | H15: 0.002105263158 | I15: 0.12 | J15: 0.01204516939 | K15: 0.48 | L15: 0.01817493374 | M15: 0.48 | N15: 0.01771217712 | O15: 0.48 | P15: 0.007148220486 | Q15: 0.002105263158 | R15: 0.01817493374 | S15: 0
B16: JBLU<XNAS> | C16: Jetblue Airways Corp | D16: Transporte aéreo regular | E16: JBLU | F16: 0 | G16: 0 | H16: 0 | I16: 0 | J16: 0 | K16: 0 | L16: 0 | M16: 0 | N16: 0 | O16: 0
B17: LTM<XSGO> | C17: Latam Airlines Group S.A. | D17: Transporte aéreo regular | E17: LTM | F17: 0 | G17: 0 | H17: 0.004049154502 | I17: 0.03424447919 | J17: 0.005421977195 | K17: 0.07683146677 | L17: 0.009030083836 | M17: 0.09000619145 | N17: 0.009113826933 | O17: 0.09000619145 | P17: 0.003945006067 | Q17: 0.004049154502 | R17: 0.009113826933 | S17: 0
B18: MESA<XNAS> | C18: Mesa Air Group Inc | D18: Transporte aéreo regular | E18: MESA | L18: 0 | M18: 0 | N18: 0 | O18: 0
B19: SKYW<XNAS> | C19: Skywest Inc | D19: Transporte aéreo regular | E19: SKYW | F19: 0.009989484753 | G19: 0.19 | H19: 0.00877914952 | I19: 0.32 | J19: 0.007532956685 | K19: 0.4 | L19: 0.01079379357 | M19: 0.48 | N19: 0.008364001338 | O19: 0.5 | P19: 0.006494197981 | Q19: 0.008364001338 | R19: 0.01079379357 | S19: 0
B20: LUV<XNYS> | C20: Southwest Airlines Co. | D20: Transporte aéreo regular | E20: LUV | F20: 0.008708778449 | G20: 0.375 | H20: 0.009530497592 | I20: 0.475 | J20: 0.009243697479 | K20: 0.605 | L20: 0.01506024096 | M20: 0.7 | N20: 0.01373783629 | O20: 0.72 | P20: 0.008040150111 | Q20: 0.009243697479 | R20: 0.01506024096 | S20: 0
B21: SAVE<XNAS> | C21: Spirit Airlines, Inc | D21: Transporte aéreo regular | E21: SAVE | F21: 0 | G21: 0 | H21: 0 | I21: 0 | J21: 0 | K21: 0 | L21: 0 | M21: 0 | N21: 0 | O21: 0
B22: UAL<XNYS> | C22: United Airlines Hldg Inc | D22: Transporte aéreo regular | E22: UAL | F22: 0 | G22: 0 | H22: 0 | I22: 0 | J22: 0 | K22: 0 | L22: 0 | M22: 0 | N22: 0 | O22: 0
B23: VOLARA<XMEX> | C23: Volaris | D23: Transporte aéreo regular | E23: VOLARA | F23: 0 | G23: 0 | H23: 0 | I23: 0 | J23: 0 | K23: 0 | L23: 0 | M23: 0 | N23: 0 | O23: 0
P39: =IF(MAX(,,F39,H39,J39,L39,N39)=0,"",AVERAGE(,,F39,H39,J39,L39,N39)) ->  | R39: =IF(MAX(,,F39,H39,J39,L39,N39)=0,"",MAX(,,F39,H39,J39,L39,N39)) ->  | S39: =IF(MAX(,,F39,H39,J39,L39,N39)=0,"",MIN(,,F39,H39,J39,L39,N39)) -> 
P71: =IF(MAX(,,F71,H71,J71,L71,N71)=0,"",AVERAGE(,,F71,H71,J71,L71,N71)) ->  | R71: =IF(MAX(,,F71,H71,J71,L71,N71)=0,"",MAX(,,F71,H71,J71,L71,N71)) ->  | S71: =IF(MAX(,,F71,H71,J71,L71,N71)=0,"",MIN(,,F71,H71,J71,L71,N71)) -> 
Q72: =IF(MAX(,,F72,H72,J72,L72,N72)=0,"",MEDIAN(,,F72,H72,J72,L72,N72)) -> 
P103: =IF(MAX(,,F103,H103,J103,L103,N103)=0,"",AVERAGE(,,F103,H103,J103,L103,N103)) ->  | R103: =IF(MAX(,,F103,H103,J103,L103,N103)=0,"",MAX(,,F103,H103,J103,L103,N103)) ->  | S103: =IF(MAX(,,F103,H103,J103,L103,N103)=0,"",MIN(,,F103,H103,J103,L103,N103)) -> 
P135: =IF(MAX(,,F135,H135,J135,L135,N135)=0,"",AVERAGE(,,F135,H135,J135,L135,N135)) ->  | R135: =IF(MAX(,,F135,H135,J135,L135,N135)=0,"",MAX(,,F135,H135,J135,L135,N135)) ->  | S135: =IF(MAX(,,F135,H135,J135,L135,N135)=0,"",MIN(,,F135,H135,J135,L135,N135)) -> 
Q136: =IF(MAX(,,F136,H136,J136,L136,N136)=0,"",MEDIAN(,,F136,H136,J136,L136,N136)) -> 
P167: =IF(MAX(,,F167,H167,J167,L167,N167)=0,"",AVERAGE(,,F167,H167,J167,L167,N167)) ->  | R167: =IF(MAX(,,F167,H167,J167,L167,N167)=0,"",MAX(,,F167,H167,J167,L167,N167)) ->  | S167: =IF(MAX(,,F167,H167,J167,L167,N167)=0,"",MIN(,,F167,H167,J167,L167,N167)) -> 

Sheet Base Factsheet
A1: Please do not modify - Pivot table
A2: Start date: | B2: =_xll.ECONOMATICA(B5,"Series Start Date") -> 2012-01-03
A3: Period: | B3: =IF(Factsheet!AC15="DESDE O INÍCIO",B2,Factsheet!AC15) -> 12M | C3: Maximum: | D3: =ROUNDUP(MAX($B$8:$D$10000),-1) -> 150
A4: End Date: | B4: =Factsheet!AC3:AC3 -> 2020-05-08 | C4: Minimum: | D4: =ROUNDDOWN(MIN($B$8:$D$10000),-1) -> 10
A5: Ticker: | B5: =Factsheet!F5 -> PFAVH<XBOG> | C5: =AtualizarLimitesGrafico("Factsheet","Base100",D4,D3) -> Base100, Min:10, Max:150
B6: =TRIM(LEFT(SUBSTITUTE(B5,"<",REPT(" ",100)),20)) -> PFAVH
A7: Date | B7: =_xll.ECONOMATICA(B5,"ticker") -> PFAVH | C7: =N15 -> COLCAP RT | D7: DJIA | F7: =_xll.ECOSECURITIES("STOCK","ACTIVE",,L15,,,,{"Sector Economatica<>Finanzas y Seguros";"Index particip.>0"}) ->  | G7: =_xll.ECONOMATICA($F$8:$F$3000,"name") -> Nombre | H7: =_xll.ECONOMATICA($F$8:$F$3000,"Class") -> Clase | I7: Nombre y Clase | J7: Codigo | K7: Colombia | L7: COL | M7: COLCAPRT<XBOG> | N7: =IF(M7="S&P 500","S&P 500", "COLCAP RT") -> COLCAP RT
A8: =_xll.ECONOMATICA(B5,"Close",,B4,B3,"D",,,TRUE,FALSE,,{"def.defdef=6"}) -> 2019-05-08 | B8: 100 | C8: =_xll.ECONOMATICA(M15,"Close",,B4,B3,"D",,,FALSE,FALSE,,{"def.defdef=6"}) -> 100 | D8: =_xll.ECONOMATICA("DJIA","Close",,B4,B3,"D",,,FALSE,FALSE,,{"def.defdef=6"}) -> 100 | F8: PFAVH<XBOG> | G8: Avianca Holdings S.A. | H8: Pref | I8: =CONCATENATE(G8," ",H8) -> Avianca Holdings S.A. Pref | J8: =F8 -> PFAVH<XBOG> | K8: Chile | L8: CHL | M8: SP IPSA<XSGO> | N8: IPSA
A9: 2019-05-09 | B9: 97.25855723 | C9: 100.1287421 | D9: 99.46482754 | F9: CELSIA<XBOG> | G9: Celsia S.A. e.S.P | H9: Ord | I9: =CONCATENATE(G9," ",H9) -> Celsia S.A. e.S.P Ord | J9: =F9 -> CELSIA<XBOG> | K9: Estados Unidos | L9: USA | M9: S&P 500 | N9: S&P 500
A10: 2019-05-10 | B10: 98.50458224 | C10: 100.5846152 | D10: 99.90387922 | F10: CEMARGOS<XBOG> | G10: Cementos Argos | H10: Ord | I10: Cementos Argos Ord | J10: CEMARGOS<XBOG> | K10: Argentina | L10: ARG | M10: MERVAL<XBUE> | N10: MERVAL
A11: 2019-05-13 | B11: 94.33511887 | C11: 98.92209051 | D11: 97.52635331 | F11: PFCEMARGOS<XBOG> | G11: Cementos Argos | H11: Pref | I11: Cementos Argos Pref | J11: PFCEMARGOS<XBOG> | K11: Perú | L11: PER | M11: SPBL25PT<XLIM> | N11: BVL 25
A12: 2019-05-14 | B12: 88.57663749 | C12: 97.74750193 | D12: 98.32373987 | F12: CLH<XBOG> | G12: Cemex Latam Holdings | H12: Ord | I12: Cemex Latam Holdings Ord | J12: CLH<XBOG> | K12: Brasil | L12: BRA | M12: IBOV<XBSP> | N12: BOVESPA
A13: 2019-05-15 | B13: 88.9506118 | C13: 97.66882684 | D13: 98.7703395 | F13: CONCONCRET<XBOG> | G13: Constructora Conconcreto S.A. | H13: Ord | I13: Constructora Conconcreto S.A. Ord | J13: CONCONCRET<XBOG> | K13: México | L13: MEX | M13: IPyC<XMEX> | N13: IP Y C
A14: 2019-05-16 | B14: 84.28774753 | C14: 97.45932844 | D14: 99.59699361 | F14: ECOPETROL<XBOG> | G14: Ecopetrol | H14: Ord | I14: Ecopetrol Ord | J14: ECOPETROL<XBOG>
A15: 2019-05-17 | B15: 84.42198205 | C15: 97.41871561 | D15: 99.21697764 | F15: ETB<XBOG> | G15: Emp.Telec.Bogota | H15: Ord | I15: Emp.Telec.Bogota Ord | J15: ETB<XBOG> | K15: =Factsheet!H5 -> Colombia | L15: =VLOOKUP($K$15,$K$7:$N$13,2,FALSE) -> COL | M15: =VLOOKUP($K$15,$K$7:$N$13,3,FALSE) -> COLCAPRT<XBOG> | N15: =VLOOKUP($K$15,$K$7:$N$13,4,FALSE) -> COLCAP RT
A16: 2019-05-20 | B16: 82.148067 | C16: 95.61332083 | D16: 98.89310915 | F16: EXITO<XBOG> | G16: Exito | H16: Ord | I16: Exito Ord | J16: EXITO<XBOG>
A17: 2019-05-21 | B17: 88.25197191 | C17: 95.48566587 | D17: 99.65341065 | F17: PFAVAL<XBOG> | G17: Grupo Aval Ac Va | H17: Pref | I17: Grupo Aval Ac Va Pref | J17: PFAVAL<XBOG>
A18: 2019-05-22 | B18: 84.49010989 | C18: 95.16727795 | D18: 99.26553866 | F18: GRUPOSURA<XBOG> | G18: Grupo de Inversiones Suramericana | H18: Ord | I18: Grupo de Inversiones Suramericana Ord | J18: GRUPOSURA<XBOG>
A19: 2019-05-23 | B19: 83.90443787 | C19: 94.161681 | D19: 98.16361559 | F19: PFGRUPSURA<XBOG> | G19: Grupo de Inversiones Suramericana | H19: Pref | I19: Grupo de Inversiones Suramericana Pref | J19: PFGRUPSURA<XBOG>
A20: 2019-05-24 | B20: 110.2810086 | C20: 94.4809359 | D20: 98.53030712 | F20: GEB<XBOG> | G20: Grupo Energia Bogota S.A. Esp | H20: Ord | I20: Grupo Energia Bogota S.A. Esp Ord | J20: GEB<XBOG>
A21: 2019-05-27 | B21: 124.6839305 | C21: 94.16270036 | F21: ISA<XBOG> | G21: Interconexion Electrica S.A. Esp | H21: Ord | I21: Interconexion Electrica S.A. Esp Ord | J21: ISA<XBOG>
A22: 2019-05-28 | B22: 114.9639467 | C22: 93.10421965 | D22: 97.61407892 | F22: NUTRESA<XBOG> | G22: Nutresa | H22: Ord | I22: Nutresa Ord | J22: NUTRESA<XBOG>
A23: 2019-05-29 | B23: 111.4914041 | C23: 94.20380532 | D23: 96.76162316 | J23: 0
A24: 2019-05-30 | B24: 110.0676536 | C24: 94.18450497 | D24: 96.92902582 | J24: 0
A25: 2019-05-31 | B25: 104.6053853 | C25: 94.67023308 | D25: 95.56253954 | J25: 0
A26: 2019-06-03 | D26: 95.58079325 | J26: 0
A27: 2019-06-04 | B27: 100.6728045 | C27: 94.78244308 | D27: 97.55404194 | J27: 0
A28: 2019-06-05 | B28: 102.4877373 | C28: 95.91110024 | D28: 98.35269933 | J28: 0
A29: 2019-06-06 | B29: 97.66097855 | C29: 96.61334477 | D29: 99.05007561 | J29: 0
A30: 2019-06-07 | B30: 103.3810327 | C30: 98.14302375 | D30: 100.063965 | J30: 0
A31: 2019-06-10 | B31: 102.446931 | C31: 97.86586967 | D31: 100.3671922 | J31: 0
A32: 2019-06-11 | B32: 105.0762792 | C32: 99.7618222 | D32: 100.3126236 | J32: 0
A33: 2019-06-12 | B33: 107.3974562 | C33: 99.55714805 | D33: 100.1444122 | J33: 0
A34: 2019-06-13 | B34: 102.4237396 | C34: 99.66078944 | D34: 100.5369824 | J34: 0
A35: 2019-06-14 | B35: 102.0085703 | C35: 99.89853263 | D35: 100.4708994 | J35: 0
A36: 2019-06-17 | B36: 97.75398938 | C36: 99.2485638 | D36: 100.5591641 | J36: 0
A37: 2019-06-18 | B37: 96.93764873 | C37: 100.0374209 | D37: 101.9186031 | J37: 0
A38: 2019-06-19 | B38: 103.4421624 | C38: 101.2527274 | D38: 102.0667123 | J38: 0
A39: 2019-06-20 | B39: 106.3794047 | C39: 102.3082067 | D39: 103.0262642 | J39: 0
A40: 2019-06-21 | B40: 108.6407254 | C40: 104.1753105 | D40: 102.8951764 | J40: 0
A41: 2019-06-24 | D41: 102.9275632 | J41: 0
A42: 2019-06-25 | B42: 105.4819401 | C42: 104.5714593 | D42: 102.2370032 | J42: 0
A43: 2019-06-26 | B43: 109.5004872 | C43: 104.3861076 | D43: 102.1931019 | J43: 0
A44: 2019-06-27 | B44: 107.3380735 | C44: 104.551015 | D44: 102.1536677 | J44: 0
A45: 2019-06-28 | B45: 108.0989205 | C45: 104.0055576 | D45: 102.4362536 | J45: 0
A46: 2019-07-01 | D46: 102.8886297 | J46: 0
A47: 2019-07-02 | B47: 105.0048204 | C47: 103.4239726 | D47: 103.1553109 | J47: 0
A48: 2019-07-03 | B48: 108.3345341 | C48: 104.583003 | D48: 103.8458709 | J48: 0
A49: 2019-07-04 | B49: 110.2296385 | C49: 104.88358 | J49: 0
A50: 2019-07-05 | B50: 113.0380369 | C50: 105.7657599 | D50: 103.6768894 | J50: 0
A51: 2019-07-08 | B51: 114.0772651 | C51: 105.5547847 | D51: 103.2302512 | J51: 0
A52: 2019-07-09 | B52: 113.3629281 | C52: 106.4372154 | D52: 103.1430263 | J52: 0
A53: 2019-07-10 | B53: 114.1968268 | C53: 106.7193783 | D53: 103.4384359 | J53: 0
A54: 2019-07-11 | B54: 115.6304566 | C54: 107.0503723 | D54: 104.3160001 | J54: 0
A55: 2019-07-12 | B55: 119.7085651 | C55: 107.8787724 | D55: 105.2554498 | J55: 0
A56: 2019-07-15 | B56: 121.3891012 | C56: 108.114036 | D56: 105.3599273 | J56: 0
A57: 2019-07-16 | B57: 121.7293851 | C57: 109.0887203 | D57: 105.2693134 | J57: 0
A58: 2019-07-17 | B58: 120.3291894 | C58: 107.9487793 | D58: 104.8234455 | J58: 0
A59: 2019-07-18 | B59: 117.5487398 | C59: 106.965709 | D59: 104.8352295 | J59: 0
A60: 2019-07-19 | B60: 122.3756346 | C60: 108.207106 | D60: 104.5706278 | J60: 0
A61: 2019-07-22 | B61: 120.7657136 | C61: 108.2647613 | D61: 104.6387904 | J61: 0
A62: 2019-07-23 | B62: 116.9094741 | C62: 108.5064868 | D62: 105.3215329 | J62: 0
A63: 2019-07-24 | B63: 114.4147975 | C63: 107.5219155 | D63: 105.0164572 | J63: 0
A64: 2019-07-25 | B64: 108.8903358 | C64: 107.4849853 | D64: 104.5197177 | J64: 0
A65: 2019-07-26 | B65: 111.0690949 | D65: 104.7179283 | J65: 0
A66: 2019-07-29 | B66: 114.9026835 | C66: 105.5650255 | D66: 104.8292219 | J66: 0
A67: 2019-07-30 | B67: 114.5521277 | C67: 103.4627145 | D67: 104.7393783 | J67: 0
A68: 2019-07-31 | B68: 109.2716878 | C68: 102.0058483 | D68: 103.4541095 | J68: 0
A69: 2019-08-01 | B69: 107.729661 | C69: 100.5583284 | D69: 102.3725581 | J69: 0
A70: 2019-08-02 | B70: 110.9141372 | C70: 99.80252895 | D70: 101.9935819 | J70: 0
A71: 2019-08-05 | B71: 106.535345 | C71: 93.63981792 | D71: 99.03883072 | J71: 0
A72: 2019-08-06 | B72: 103.8097094 | C72: 94.14414332 | D72: 100.2394932 | J72: 0
A73: 2019-08-07 | D73: 100.1530385 | I73: =CONCATENATE(G73," ",H73) ->  | J73: =F73 -> 0
A74: 2019-08-08 | B74: 111.2244842 | C74: 96.96330581 | D74: 101.5822189 | J74: 0
A75: 2019-08-09 | B75: 110.7677774 | C75: 97.5260447 | D75: 101.2327413 | J75: 0
A76: 2019-08-12 | B76: 106.4981521 | C76: 97.46177116 | D76: 99.72700312 | J76: 0
A77: 2019-08-13 | B77: 109.0975701 | C77: 97.40854599 | D77: 101.2037433 | J77: 0
A78: 2019-08-14 | B78: 108.0278202 | C78: 95.77251866 | D78: 98.12106212 | J78: 0
A79: 2019-08-15 | B79: 97.91538246 | C79: 95.14351128 | D79: 98.50604587 | J79: 0
A80: 2019-08-16 | B80: 95.3460456 | C80: 96.34824606 | D80: 99.68683727 | J80: 0
A81: 2019-08-19 | D81: 100.6487382 | J81: 0
A82: 2019-08-20 | B82: 86.98875551 | C82: 96.88424055 | D82: 99.98116865 | J82: 0
A83: 2019-08-21 | B83: 83.18226229 | C83: 97.02812496 | D83: 100.9065237 | J83: 0
A84: 2019-08-22 | B84: 83.05100294 | C84: 97.12286949 | D84: 101.0971863 | J84: 0
A85: 2019-08-23 | B85: 82.9178163 | C85: 95.97952892 | D85: 98.69670852 | J85: 0
A86: 2019-08-26 | B86: 81.68829276 | C86: 96.20421243 | D86: 99.736207 | J86: 0
A87: 2019-08-27 | B87: 74.27381213 | C87: 96.0679427 | D87: 99.27050644 | J87: 0
A88: 2019-08-28 | B88: 74.39432182 | C88: 95.7262478 | D88: 100.2648328 | J88: 0
A89: 2019-08-29 | B89: 74.62880463 | C89: 95.53675242 | D89: 101.5208341 | J89: 0
A90: 2019-08-30 | B90: 72.945551 | C90: 96.97256856 | D90: 101.6788403 | J90: 0
A91: 2019-09-02 | B91: 78.3797137 | C91: 98.09711049 | J91: 0
A92: 2019-09-03 | B92: 74.72642196 | C92: 98.139543 | D92: 100.5803061 | J92: 0
A93: 2019-09-04 | B93: 73.81837232 | C93: 98.09109938 | D93: 101.4947243 | J93: 0
A94: 2019-09-05 | B94: 71.28700801 | C94: 99.26724552 | D94: 102.9299123 | J94: 0
A95: 2019-09-06 | B95: 70.7751185 | C95: 99.97439478 | D95: 103.1968246 | J95: 0
A96: 2019-09-09 | B96: 77.20019841 | C96: 101.0317776 | D96: 103.3433549 | J96: 0
A97: 2019-09-10 | B97: 82.44363304 | C97: 100.5667786 | D97: 103.6280203 | J97: 0
A98: 2019-09-11 | B98: 83.3348349 | C98: 101.2557103 | D98: 104.5024652 | J98: 0
A99: 2019-09-12 | B99: 85.72882225 | C99: 101.4182431 | D99: 104.6794183 | J99: 0
A100: 2019-09-13 | B100: 89.79507881 | C100: 101.4029262 | D100: 104.8221746 | J100: 0
A101: 2019-09-16 | B101: 85.12848062 | C101: 102.7798525 | D101: 104.272638 | J101: 0
A102: 2019-09-17 | B102: 88.90062558 | C102: 102.3605778 | D102: 104.4034947 | J102: 0
A103: 2019-09-18 | B103: 89.15016732 | C103: 101.8245669 | D103: 104.5432087 | J103: 0
A104: 2019-09-19 | B104: 86.15578523 | C104: 101.711583 | D104: 104.3418403 | J104: 0
A105: 2019-09-20 | B105: 84.78999024 | C105: 101.72204 | D105: 103.7267597 | J105: 0
A106: 2019-09-23 | B106: 84.17692804 | C106: 101.1715156 | D106: 103.7855259 | J106: 0
A107: 2019-09-24 | B107: 80.95720607 | C107: 99.74780673 | D107: 103.2365284 | J107: 0
A108: 2019-09-25 | B108: 83.95901247 | C108: 100.0516512 | D108: 103.8640091 | J108: 0
A109: 2019-09-26 | B109: 89.68170733 | C109: 100.223538 | D109: 103.5661348 | J109: 0
A110: 2019-09-27 | B110: 98.14832726 | C110: 99.63782536 | D110: 103.2958336 | J110: 0
A111: 2019-09-30 | B111: 101.4055711 | C111: 98.44483102 | D111: 103.6737316 | J111: 0
A112: 2019-10-01 | B112: 101.6195066 | C112: 98.28520598 | D112: 102.3457552 | J112: 0
A113: 2019-10-02 | B113: 98.90125752 | C113: 97.46601875 | D113: 100.428577 | J113: 0
A114: 2019-10-03 | B114: 97.7395659 | C114: 98.14824068 | D114: 100.9000155 | J114: 0
A115: 2019-10-04 | B115: 99.90996579 | C115: 99.26656754 | D115: 102.33116 | J115: 0
A116: 2019-10-07 | B116: 107.7300737 | C116: 100.5858233 | D116: 101.9666635 | J116: 0
A117: 2019-10-08 | B117: 112.2732596 | C117: 99.69541908 | D117: 100.7575288 | J117: 0
A118: 2019-10-09 | B118: 112.0518069 | C118: 99.51685269 | D118: 101.4582939 | J118: 0
A119: 2019-10-10 | B119: 110.3158078 | C119: 99.09149617 | D119: 102.0384845 | J119: 0
A120: 2019-10-11 | B120: 105.8517587 | C120: 99.44432193 | D120: 103.2619834 | J120: 0
A121: 2019-10-14 | D121: 103.1579296 | J121: 0
A122: 2019-10-15 | B122: 110.3853535 | C122: 99.47039621 | D122: 104.0723093 | J122: 0
A123: 2019-10-16 | B123: 115.7727001 | C123: 98.93992409 | D123: 103.9844297 | J123: 0
A124: 2019-10-17 | B124: 122.8413998 | C124: 98.65155717 | D124: 104.0764684 | J124: 0
A125: 2019-10-18 | B125: 122.6357986 | C125: 98.69346538 | D125: 103.0918466 | J125: 0
A126: 2019-10-21 | B126: 128.327846 | C126: 100.9631909 | D126: 103.3130476 | J126: 0
A127: 2019-10-22 | B127: 122.7688998 | C127: 101.5430036 | D127: 103.1607793 | J127: 0
A128: 2019-10-23 | B128: 123.8888624 | C128: 101.9055922 | D128: 103.3373474 | J128: 0
A129: 2019-10-24 | B129: 121.9425032 | C129: 102.703947 | D129: 103.2279021 | J129: 0
A130: 2019-10-25 | B130: 122.3780392 | C130: 104.158687 | D130: 103.8152941 | J130: 0
A131: 2019-10-28 | B131: 123.8072781 | C131: 103.517738 | D131: 104.3261668 | J131: 0
A132: 2019-10-29 | B132: 128.0412238 | C132: 104.6580034 | D132: 104.2518426 | J132: 0
A133: 2019-10-30 | B133: 124.6743432 | C133: 104.7407621 | D133: 104.6957465 | J133: 0
A134: 2019-10-31 | B134: 127.4078363 | C134: 104.4163461 | D134: 104.1548361 | J134: 0
A135: 2019-11-01 | B135: 130.7302521 | C135: 105.5131209 | D135: 105.3144855 | J135: 0
A136: 2019-11-04 | D136: 105.756387 | J136: 0
A137: 2019-11-05 | B137: 132.4567798 | C137: 108.0439652 | D137: 105.8739193 | I137: =CONCATENATE(G137," ",H137) ->  | J137: =F137 -> 0
A138: 2019-11-06 | B138: 132.2398204 | C138: 108.2049924 | D138: 105.8736497 | J138: 0
A139: 2019-11-07 | B139: 131.8453358 | C139: 108.0766842 | D139: 106.5754546 | J139: 0
A140: 2019-11-08 | B140: 131.5528763 | C140: 106.5222246 | D140: 106.5891256 | J140: 0
A141: 2019-11-11 | D141: 106.6397277 | J141: 0
A142: 2019-11-12 | B142: 126.1628929 | C142: 105.8097228 | D142: 106.6397277 | J142: 0
A143: 2019-11-13 | B143: 126.2586 | C143: 103.956996 | D143: 106.9944041 | J143: 0
A144: 2019-11-14 | B144: 127.8334586 | C144: 101.652246 | D144: 106.988127 | J144: 0
A145: 2019-11-15 | B145: 127.0998609 | C145: 102.1822998 | D145: 107.8466288 | J145: 0
A146: 2019-11-18 | B146: 125.9039344 | C146: 102.7476805 | D146: 107.9672804 | J146: 0
A147: 2019-11-19 | B147: 124.2670395 | C147: 101.0792487 | D147: 107.573709 | J147: 0
A148: 2019-11-20 | B148: 122.3927456 | C148: 101.1248469 | D148: 107.1388164 | J148: 0
A149: 2019-11-21 | B149: 115.9534506 | C149: 100.8151112 | D149: 106.9277819 | J149: 0
A150: 2019-11-22 | B150: 118.8168552 | C150: 101.7988709 | D150: 107.348811 | J150: 0
A151: 2019-11-25 | B151: 123.9210832 | C151: 101.9216897 | D151: 108.083773 | J151: 0
A152: 2019-11-26 | B152: 110.9782282 | C152: 100.9448851 | D152: 108.2963863 | J152: 0
A153: 2019-11-27 | B153: 118.5116367 | C153: 99.36831105 | D153: 108.4593603 | J153: 0
A154: 2019-11-28 | B154: 113.4082825 | C154: 99.33624758 | J154: 0
A155: 2019-11-29 | B155: 117.3643854 | C155: 99.83148754 | D155: 108.025777 | J155: 0
A156: 2019-12-02 | B156: 117.6962058 | C156: 98.51914911 | D156: 106.9922861 | J156: 0
A157: 2019-12-03 | B157: 117.8397227 | C157: 98.37363957 | D157: 105.9131224 | J157: 0
A158: 2019-12-04 | B158: 114.6042955 | C158: 99.80690307 | D158: 106.4791028 | J158: 0
A159: 2019-12-05 | B159: 120.8418002 | C159: 100.7630962 | D159: 106.5869691 | J159: 0
A160: 2019-12-06 | B160: 124.4953265 | C160: 101.1982698 | D160: 107.8857934 | J160: 0
A161: 2019-12-09 | B161: 125.9084225 | C161: 101.6237615 | D161: 107.4796677 | J161: 0
A162: 2019-12-10 | B162: 128.3710528 | C162: 101.8439362 | D162: 107.372302 | J162: 0
A163: 2019-12-11 | B163: 124.6503084 | C163: 102.0469389 | D163: 107.4862144 | J163: 0
A164: 2019-12-12 | B164: 126.8091816 | C164: 103.8430302 | D164: 108.3363211 | J164: 0
A165: 2019-12-13 | B165: 130.8165602 | C165: 105.0250253 | D165: 108.3501846 | J165: 0
A166: 2019-12-16 | B166: 126.6297849 | C166: 105.0218012 | D166: 108.7362082 | J166: 0
A167: 2019-12-17 | B167: 126.6648012 | C167: 104.8730658 | D167: 109.0933492 | J167: 0
A168: 2019-12-18 | B168: 130.7339765 | C168: 106.5466868 | D168: 108.749263 | J168: 0
A169: 2019-12-19 | B169: 131.4359398 | C169: 107.8202018 | D169: 109.2794677 | J169: 0
A170: 2019-12-20 | B170: 128.9154504 | C170: 107.5052529 | D170: 109.5803458 | J170: 0
A171: 2019-12-23 | B171: 128.1415231 | C171: 109.1247896 | D171: 109.9517355 | J171: 0
A172: 2019-12-24 | B172: 129.516319 | C172: 109.4982957 | D172: 109.8127917 | J172: 0
A173: 2019-12-25 | J173: 0
A174: 2019-12-26 | B174: 126.457121 | C174: 109.428967 | D174: 110.2207659 | J174: 0
A175: 2019-12-27 | B175: 129.1586331 | C175: 110.5388358 | D175: 110.3126891 | J175: 0
A176: 2019-12-30 | C176: 110.1978962 | D176: 109.6074953 | J176: 0
A177: 2019-12-31 | D177: 109.901326 | J177: 0
A178: 2020-01-01 | J178: 0
A179: 2020-01-02 | B179: 127.9169748 | C179: 110.4787946 | D179: 111.17354 | J179: 0
A180: 2020-01-03 | B180: 128.9896591 | C180: 112.2810615 | D180: 110.2727158 | J180: 0
A181: 2020-01-06 | D181: 110.5365088 | J181: 0
A182: 2020-01-07 | B182: 124.6145059 | C182: 111.4570377 | D182: 110.0755449 | J182: 0
A183: 2020-01-08 | B183: 124.5301382 | C183: 110.9196161 | D183: 110.6971337 | J183: 0
A184: 2020-01-09 | B184: 124.9066651 | C184: 110.9876556 | D184: 111.5128124 | J184: 0
A185: 2020-01-10 | B185: 124.2171975 | C185: 111.1543236 | D185: 111.0001298 | J185: 0
A186: 2020-01-13 | B186: 121.3890219 | C186: 110.2590595 | D186: 111.3208405 | J186: 0
A187: 2020-01-14 | B187: 129.2486321 | C187: 109.8451627 | D187: 111.4464598 | J187: 0
A188: 2020-01-15 | D188: 111.7951672 | J188: 0
A189: 2020-01-16 | B189: 133.1114606 | C189: 109.1669995 | D189: 112.8249997 | J189: 0
A190: 2020-01-17 | B190: 132.7906992 | C190: 109.1827793 | D190: 113.0193208 | J190: 0
A191: 2020-01-20 | B191: 133.1915052 | C191: 108.9818389 | J191: 0
A192: 2020-01-21 | B192: 137.0168487 | C192: 108.803666 | D192: 112.4337389 | J192: 0
A193: 2020-01-22 | B193: 134.1814178 | C193: 107.7237203 | D193: 112.3961147 | J193: 0
A194: 2020-01-23 | B194: 135.2810297 | C194: 107.9138156 | D194: 112.2952957 | J194: 0
A195: 2020-01-24 | B195: 135.6690522 | C195: 107.3581046 | D195: 111.6392405 | J195: 0
A196: 2020-01-27 | B196: 132.4306323 | C196: 105.403826 | D196: 109.8911594 | J196: 0
A197: 2020-01-28 | B197: 132.8675149 | C197: 104.4271581 | D197: 110.6114876 | J197: 0
A198: 2020-01-29 | B198: 133.4350612 | C198: 105.2413605 | D198: 110.6561591 | J198: 0
A199: 2020-01-30 | B199: 136.3981098 | C199: 105.4000562 | D199: 111.1374947 | J199: 0
A200: 2020-01-31 | B200: 136.4214262 | C200: 104.0296516 | D200: 108.8137671 | J200: 0
... 2594 more rows
